Departmental Area,Entity,Payment Date,Expense type,Expense Area,Supplier Name,Payment Reference, Invoice Distribution Amount ,Description,Supplier Type,Expenditure Type
UK Statistics Family,Office for National Statistics,01/10/2021,Exp - Purchase Of Goods And Services Consultants,Digital Delivery,Xma Limited,211263,562.5,Costs Associated with Mobile Devices,Large,Programme Expenditure
UK Statistics Family,Office for National Statistics,01/10/2021,Exp - Purchase Of Goods/Services - IT Contractual Services,Digital Delivery,Xma Limited,211263,"168,489.06",Costs Associated with Mobile Devices,Large,Programme Expenditure
UK Statistics Family,Office for National Statistics,01/10/2021,Exp - Purchase Of Goods/Services - Training & Development - Professional Membership Fees,Productivity Research And Professional Development,Niesr,211267,"54,014.40",Corporate Membership,SME,Programme Expenditure
UK Statistics Family,Office for National Statistics,01/10/2021,Exp - Purchase Of Goods/Services - Contractors,Business Architecture,La International,211269,"7,402.99",Information Management Services,SME,Programme Expenditure
UK Statistics Family,Office for National Statistics,01/10/2021,Exp - Purchase Of Goods/Services - Contractors,Testing,La International,211269,"4,741.73",Information Management Services,SME,Programme Expenditure
UK Statistics Family,Office for National Statistics,01/10/2021,Exp - Purchase Of Goods/Services - Contractors,Testing,La International,211269,"6,087.05",Information Management Services,SME,Programme Expenditure
UK Statistics Family,Office for National Statistics,01/10/2021,Exp - Purchase Of Goods/Services - Contractors,HALE,La International,211269,"2,413.75",Information Management Services,SME,Programme Expenditure
UK Statistics Family,Office for National Statistics,01/10/2021,Exp - Purchase Of Goods/Services - Contractors,Digital Publishing,La International,211269,"8,970.86",Information Management Services,SME,Programme Expenditure
UK Statistics Family,Office for National Statistics,01/10/2021,Exp - Purchase Of Goods/Services - Contractors,Data Architecture,La International,211269,"6,458.94",Information Management Services,SME,Programme Expenditure
UK Statistics Family,Office for National Statistics,01/10/2021,Exp - Purchase Of Goods/Services - Contractors,Data Architecture,La International,211269,"3,524.22",Information Management Services,SME,Programme Expenditure
UK Statistics Family,Office for National Statistics,01/10/2021,Exp - Purchase Of Goods/Services - Contractors,CLOUD ARCHITECTURE,La International,211269,"3,844.62",Information Management Services,SME,Programme Expenditure
UK Statistics Family,Office for National Statistics,01/10/2021,Exp - Purchase Of Goods/Services - Contractors,Strategy And Architecture,La International,211269,"3,588.30",Information Management Services,SME,Programme Expenditure
UK Statistics Family,Office for National Statistics,01/10/2021,Exp - Purchase Of Goods/Services - Contractors,IT Applications,La International,211269,"5,190.26",Information Management Services,SME,Programme Expenditure
UK Statistics Family,Office for National Statistics,01/10/2021,Exp - Purchase Of Goods/Services - Contractors,Digital Delivery,La International,211269,"10,764.90",Information Management Services,SME,Programme Expenditure
UK Statistics Family,Office for National Statistics,01/10/2021,Print & Post,Survey Processing Centre,APS Group,211275,"3,559.68",Print and Post Services,Large,Programme Expenditure
UK Statistics Family,Office for National Statistics,01/10/2021,Print & Post,Social Survey Transformation Newport,APS Group,211275,"79,067.24",Print and Post Services,Large,Programme Expenditure
UK Statistics Family,Office for National Statistics,01/10/2021,Print & Post,Social Survey Transformation Newport,APS Group,211275,"11,044.45",Print and Post Services,Large,Programme Expenditure
UK Statistics Family,Office for National Statistics,01/10/2021,Print & Post,Social Surveys Division,APS Group,211275,"15,788.28",Print and Post Services,Large,Programme Expenditure
UK Statistics Family,Office for National Statistics,01/10/2021,Exp - Purchase Of Goods And Services Consultants,Consultancy Management,Bloom Procurement Services Ltd,211281,"51,133.76",Consultancy,Large,Programme Expenditure
UK Statistics Family,Office for National Statistics,01/10/2021,Hosting,IT Operations,Amazon Web Services Inc,211282,"62,716.94",Information Management Services,Large,Programme Expenditure
UK Statistics Family,Office for National Statistics,01/10/2021,Exp - Purchase Of Goods/Services - Contractors,Business Architecture,SmartSourcing Ltd,211285,"13,305.79",Information Management Services,SME,Programme Expenditure
UK Statistics Family,Office for National Statistics,01/10/2021,Exp - Short-Term Contract & Agency Staff - Full Cost,INTEGRATED DATA STRATEGY AND DELIVERY,SmartSourcing Ltd,211285,"1,377.00",Information Management Services,SME,Programme Expenditure
UK Statistics Family,Office for National Statistics,01/10/2021,Exp - Purchase Of Goods/Services - IT Contractual Services,CLOUD ARCHITECTURE,SmartSourcing Ltd,211285,3236.64,Information Management Services,SME,Programme Expenditure
UK Statistics Family,Office for National Statistics,01/10/2021,Exp - Purchase Of Goods/Services - Contractors,CDIO UNGP,SmartSourcing Ltd,211285,"3,746.16",Information Management Services,SME,Programme Expenditure
UK Statistics Family,Office for National Statistics,01/10/2021,Exp - Purchase Of Goods/Services - Contractors,Tech Delivery Legacy Sp,SmartSourcing Ltd,211285,"11,729.23",Information Management Services,SME,Programme Expenditure
UK Statistics Family,Office for National Statistics,01/10/2021,Exp - Purchase Of Goods/Services - Contractors,Tech Delivery Data As A Platform,SmartSourcing Ltd,211285,"3,600.00",Information Management Services,SME,Programme Expenditure
UK Statistics Family,Office for National Statistics,01/10/2021,Exp - Purchase Of Goods/Services - Contractors,IT Applications,SmartSourcing Ltd,211285,"3,596.16",Information Management Services,SME,Programme Expenditure
UK Statistics Family,Office for National Statistics,01/10/2021,Marketing & Media,Stakeholder Engagement And Comms,M&C Saatchi UK Ltd,211286,"84,928.64",Marketing Services,Large,Programme Expenditure
UK Statistics Family,Office for National Statistics,01/10/2021,Postage,Interviewer Support,Banner Group Ltd,211290,"33,000.00",Stationery,SME,Programme Expenditure
UK Statistics Family,Office for National Statistics,01/10/2021,Exp - Purchase Of Goods/Services - Contractors,Business Architecture,Parity Resources Limited,211291,"5,038.76",Information Management Services,Large,Programme Expenditure
UK Statistics Family,Office for National Statistics,01/10/2021,Exp - Purchase Of Goods/Services - Contractors,Programme Delivery,Parity Resources Limited,211291,"3,310.50",Information Management Services,Large,Programme Expenditure
UK Statistics Family,Office for National Statistics,01/10/2021,Exp - Purchase Of Goods/Services - Contractors,Covid Infection Survey,Parity Resources Limited,211291,"4,200.00",Information Management Services,Large,Programme Expenditure
UK Statistics Family,Office for National Statistics,01/10/2021,Exp - Purchase Of Goods/Services - Contractors,Covid Infection Survey,Parity Resources Limited,211291,"2,993.80",Information Management Services,Large,Programme Expenditure
UK Statistics Family,Office for National Statistics,01/10/2021,Exp - Purchase Of Goods/Services - Contractors,Digital Publishing,Parity Resources Limited,211291,"3,550.50",Information Management Services,Large,Programme Expenditure
UK Statistics Family,Office for National Statistics,01/10/2021,Exp - Short-Term Contract & Agency Staff - Full Cost,Recruitment ,Parity Resources Limited,211291,"1,172.16",Information Management Services,Large,Programme Expenditure
UK Statistics Family,Office for National Statistics,01/10/2021,Exp - Short-Term Contract & Agency Staff - Full Cost,Recruitment ,Parity Resources Limited,211291,732.6,Information Management Services,Large,Programme Expenditure
UK Statistics Family,Office for National Statistics,01/10/2021,Exp - Short-Term Contract & Agency Staff - Full Cost,Data Architecture,Parity Resources Limited,211291,"1,465.20",Information Management Services,Large,Programme Expenditure
UK Statistics Family,Office for National Statistics,01/10/2021,Exp - Purchase Of Goods/Services - Contractors,Strategy And Architecture,Parity Resources Limited,211291,"4,510.50",Information Management Services,Large,Programme Expenditure
UK Statistics Family,Office for National Statistics,01/10/2021,Other Goods And Services,Policy Secretariat,Diligent Boardbooks Limited,211294,"38,160.00",Software Licenses,Large,Programme Expenditure
UK Statistics Family,Office for National Statistics,01/10/2021,Exp - Purchase Of Goods/Services - IT Contractual Services,Tech Delivery Next Gen IT And Infrastructure,Diegesis Limited,211299,"26,220.00",Information Management Services,Large,Programme Expenditure
UK Statistics Family,Office for National Statistics,04/10/2021,Exp - Purchase Of Goods/Services - Contractors,Business Architecture,Certes Computing Ltd,211419,"13,629.84",Information Management Services,SME,Programme Expenditure
UK Statistics Family,Office for National Statistics,04/10/2021,Exp - Purchase Of Goods/Services - Contractors,Testing,Certes Computing Ltd,211419,"19,586.38",Information Management Services,SME,Programme Expenditure
UK Statistics Family,Office for National Statistics,04/10/2021,Exp - Purchase Of Goods/Services - Contractors,CLOUD ARCHITECTURE,Certes Computing Ltd,211419,"14,603.40",Information Management Services,SME,Programme Expenditure
UK Statistics Family,Office for National Statistics,04/10/2021,Exp - Purchase Of Goods/Services - Contractors,Strategy And Architecture,Certes Computing Ltd,211419,"9,575.14",Information Management Services,SME,Programme Expenditure
UK Statistics Family,Office for National Statistics,04/10/2021,Exp - Purchase Of Goods/Services - Contractors,Strategy And Architecture,Certes Computing Ltd,211419,832.62,Information Management Services,SME,Programme Expenditure
UK Statistics Family,Office for National Statistics,04/10/2021,Exp - Purchase Of Goods/Services - Contractors,Tech Delivery Legacy Sp,Certes Computing Ltd,211419,"12,413.00",Information Management Services,SME,Programme Expenditure
UK Statistics Family,Office for National Statistics,04/10/2021,Exp - Purchase Of Goods/Services - Contractors,Tech Delivery Data As A Platform,Certes Computing Ltd,211419,"10,408.16",Information Management Services,SME,Programme Expenditure
UK Statistics Family,Office for National Statistics,04/10/2021,Exp - Purchase Of Goods/Services - Contractors,Digital Delivery,Certes Computing Ltd,211419,"13,450.56",Information Management Services,SME,Programme Expenditure
UK Statistics Family,Office for National Statistics,04/10/2021,Exp - Purchase Of Goods/Services - Contractors,Digital Delivery,Certes Computing Ltd,211419,"20,015.70",Information Management Services,SME,Programme Expenditure
UK Statistics Family,Office for National Statistics,04/10/2021,Exp - Purchase Of Goods/Services - Contractors,Digital Delivery,Certes Computing Ltd,211419,"40,659.09",Information Management Services,SME,Programme Expenditure
UK Statistics Family,Office for National Statistics,04/10/2021,Hosting,CLOUD ARCHITECTURE,Amazon Web Services Inc,211424,"109,586.86",Information Management Services,Large,Programme Expenditure
UK Statistics Family,Office for National Statistics,04/10/2021,Hosting,IT Operations,Amazon Web Services Inc,211424,"69,408.85",Information Management Services,Large,Programme Expenditure
UK Statistics Family,Office for National Statistics,04/10/2021,Exp - Short-Term Contract & Agency Staff - Full Cost,Census CCS Data Collection,Talent International,211425,668.06,Information Management Services,SME,Programme Expenditure
UK Statistics Family,Office for National Statistics,04/10/2021,Exp - Short-Term Contract & Agency Staff - Full Cost,Covid Infection Survey,Talent International,211425,"2,633.84",Information Management Services,SME,Programme Expenditure
UK Statistics Family,Office for National Statistics,04/10/2021,Exp - Purchase Of Goods/Services - Contractors,Digital Publishing,Talent International,211425,"9,360.00",Information Management Services,SME,Programme Expenditure
UK Statistics Family,Office for National Statistics,04/10/2021,Exp - Purchase Of Goods/Services - Contractors,Digital Publishing,Talent International,211425,"3,240.00",Information Management Services,SME,Programme Expenditure
UK Statistics Family,Office for National Statistics,04/10/2021,Exp - Short-Term Contract & Agency Staff - Full Cost,Strategy And Engagement,Talent International,211425,"4,106.64",Information Management Services,SME,Programme Expenditure
UK Statistics Family,Office for National Statistics,04/10/2021,Exp - Purchase Of Goods/Services - Contractors,Finance,Talent International,211425,"8,250.00",Information Management Services,SME,Programme Expenditure
UK Statistics Family,Office for National Statistics,04/10/2021,Exp - Short-Term Contract & Agency Staff - Full Cost,Data Architecture,Talent International,211425,"3,581.78",Information Management Services,SME,Programme Expenditure
UK Statistics Family,Office for National Statistics,04/10/2021,Exp - Purchase Of Goods/Services - Contractors,IT Applications,Talent International,211425,"17,251.20",Information Management Services,SME,Programme Expenditure
UK Statistics Family,Office for National Statistics,04/10/2021,Exp - Purchase Of Goods/Services - Contractors,Interviewer Management TU,Talent International,211425,442.49,Information Management Services,SME,Programme Expenditure
UK Statistics Family,Office for National Statistics,05/10/2021,Hosting,IT Operations,Clearvision-Cm,211526,26664,Information Management Services,SME,Programme Expenditure
UK Statistics Family,Office for National Statistics,05/10/2021,Exp - Purchase Of Goods/Services - Training & Development - Seminar & Conference Fees,Covid Infection Survey,KPMG LLP,211528,"5,803.60",Training and Educational Services,SME,Programme Expenditure
UK Statistics Family,Office for National Statistics,05/10/2021,Training & Development,Portfolio Delivery,KPMG LLP,211528,"19,214.00",Training and Educational Services,SME,Programme Expenditure
UK Statistics Family,Office for National Statistics,05/10/2021,Exp - Short-Term Contract & Agency Staff - Full Cost,Census CCS Data Collection,Concept Information Technology Ltd T/A Concept Resourcing,211529,-10.97,Information Management Services,Large,Programme Expenditure
UK Statistics Family,Office for National Statistics,05/10/2021,Exp - Short-Term Contract & Agency Staff - Full Cost,Productivity Research And Professional Development,Concept Information Technology Ltd T/A Concept Resourcing,211529,"3,921.85",Information Management Services,Large,Programme Expenditure
UK Statistics Family,Office for National Statistics,05/10/2021,Exp - Purchase Of Goods/Services - Contractors,CLOUD ARCHITECTURE,Concept Information Technology Ltd T/A Concept Resourcing,211529,"20,700.00",Information Management Services,Large,Programme Expenditure
UK Statistics Family,Office for National Statistics,05/10/2021,Exp - Short-Term Contract & Agency Staff - Full Cost,Survey Management,Concept Information Technology Ltd T/A Concept Resourcing,211529,-8.87,Information Management Services,Large,Programme Expenditure
UK Statistics Family,Office for National Statistics,05/10/2021,Exp - Short-Term Contract & Agency Staff - Full Cost,Survey Management,Concept Information Technology Ltd T/A Concept Resourcing,211529,1.28,Information Management Services,Large,Programme Expenditure
UK Statistics Family,Office for National Statistics,05/10/2021,Exp - Short-Term Contract & Agency Staff - Full Cost,Prices Division,Concept Information Technology Ltd T/A Concept Resourcing,211529,"7,825.22",Information Management Services,Large,Programme Expenditure
UK Statistics Family,Office for National Statistics,05/10/2021,"ICT Outsourcing, Maintenance And Support",Researcher Support And Data Access ,Equiniti Limited,211532,"144,856.39",Information Management Services,Large,Programme Expenditure
UK Statistics Family,Office for National Statistics,05/10/2021,Hosting,IT Operations,Equiniti Limited,211532,"49,459.06",Information Management Services,Large,Programme Expenditure
UK Statistics Family,Office for National Statistics,05/10/2021,Postage,Survey Processing Centre,DHL Parcel Ltd,211534,"33,775.55",Postage,Large,Programme Expenditure
UK Statistics Family,Office for National Statistics,05/10/2021,Exp - Purchase Of Goods/Services - Contractors,Operations,Certes Computing Ltd,211535,"13,258.26",Information Management Services,SME,Programme Expenditure
UK Statistics Family,Office for National Statistics,05/10/2021,Exp - Purchase Of Goods/Services - Contractors,Security And Information Management Saim,Certes Computing Ltd,211535,"15,820.46",Information Management Services,SME,Programme Expenditure
UK Statistics Family,Office for National Statistics,05/10/2021,Exp - Purchase Of Goods/Services - Contractors,Security Advisory,Certes Computing Ltd,211535,25908.4,Information Management Services,SME,Programme Expenditure
UK Statistics Family,Office for National Statistics,05/10/2021,Exp - Purchase Of Goods/Services - Contractors,Security Advisory,Certes Computing Ltd,211535,12489.3,Information Management Services,SME,Programme Expenditure
UK Statistics Family,Office for National Statistics,05/10/2021,Exp - Purchase Of Goods/Services - Contractors,Strategy And Architecture,Certes Computing Ltd,211535,"15,390.00",Information Management Services,SME,Programme Expenditure
UK Statistics Family,Office for National Statistics,05/10/2021,Exp - Purchase Of Goods/Services - Contractors,Tech Delivery Data As A Platform,Certes Computing Ltd,211535,"19,438.05",Information Management Services,SME,Programme Expenditure
UK Statistics Family,Office for National Statistics,05/10/2021,Exp - Purchase Of Goods/Services - Contractors,Business Architecture,La International,211536,8812.68,Information Management Services,SME,Programme Expenditure
UK Statistics Family,Office for National Statistics,05/10/2021,Exp - Purchase Of Goods/Services - Contractors,Business Architecture,La International,211536,"7,176.60",Information Management Services,SME,Programme Expenditure
UK Statistics Family,Office for National Statistics,05/10/2021,Exp - Purchase Of Goods/Services - Contractors,Testing,La International,211536,"6,567.90",Information Management Services,SME,Programme Expenditure
UK Statistics Family,Office for National Statistics,05/10/2021,Exp - Purchase Of Goods/Services - Contractors,Testing,La International,211536,"6,087.05",Information Management Services,SME,Programme Expenditure
UK Statistics Family,Office for National Statistics,05/10/2021,Exp - Purchase Of Goods/Services - Contractors,HALE,La International,211536,"2,413.75",Information Management Services,SME,Programme Expenditure
UK Statistics Family,Office for National Statistics,05/10/2021,Exp - Purchase Of Goods/Services - Contractors,Sustainability And Inequalities,La International,211536,"6,945.18",Information Management Services,SME,Programme Expenditure
UK Statistics Family,Office for National Statistics,05/10/2021,Exp - Purchase Of Goods/Services - Contractors,Security Operations,La International,211536,"12,174.74",Information Management Services,SME,Programme Expenditure
UK Statistics Family,Office for National Statistics,05/10/2021,Exp - Purchase Of Goods/Services - Contractors,CLOUD ARCHITECTURE,La International,211536,"7,689.24",Information Management Services,SME,Programme Expenditure
UK Statistics Family,Office for National Statistics,05/10/2021,Exp - Purchase Of Goods/Services - Contractors,Tech Delivery Data As A Platform,La International,211536,"2,883.49",Information Management Services,SME,Programme Expenditure
UK Statistics Family,Office for National Statistics,05/10/2021,Exp - Purchase Of Goods/Services - Contractors,Tech Delivery Next Gen IT And Infrastructure,La International,211536,"27,361.00",Information Management Services,SME,Programme Expenditure
UK Statistics Family,Office for National Statistics,05/10/2021,Exp - Purchase Of Goods/Services - Contractors,IT Applications,La International,211536,"15,801.36",Information Management Services,SME,Programme Expenditure
UK Statistics Family,Office for National Statistics,05/10/2021,EXP - PURCHASE OF GOODS/SERVICES -  NON IT CONTRACTUAL PAYMENTS,Covid Infection Survey,HH Associates Ltd,211541,"64,917.25",Print and Post Services,SME,Programme Expenditure
UK Statistics Family,Office for National Statistics,05/10/2021,"ICT Outsourcing, Maintenance And Support",IT Operations,Hfx Limited,211545,"27,410.99",Information Management Services,SME,Programme Expenditure
UK Statistics Family,Office for National Statistics,05/10/2021,Exp - Short-Term Contract & Agency Staff - Full Cost,Operations,Talent International,211546,"6,653.12",Information Management Services,SME,Programme Expenditure
UK Statistics Family,Office for National Statistics,05/10/2021,Exp - Purchase Of Goods/Services - Contractors,Consultancy Management,Talent International,211546,"5,031.60",Information Management Services,SME,Programme Expenditure
UK Statistics Family,Office for National Statistics,05/10/2021,Exp - Purchase Of Goods/Services - Contractors,Covid Infection Survey,Talent International,211546,"11,050.00",Information Management Services,SME,Programme Expenditure
UK Statistics Family,Office for National Statistics,05/10/2021,Exp - Short-Term Contract & Agency Staff - Full Cost,Strategy And Engagement,Talent International,211546,"3,890.50",Information Management Services,SME,Programme Expenditure
UK Statistics Family,Office for National Statistics,05/10/2021,Exp - Short-Term Contract & Agency Staff - Full Cost,Strategy And Engagement,Talent International,211546,216.14,Information Management Services,SME,Programme Expenditure
UK Statistics Family,Office for National Statistics,05/10/2021,Exp - Purchase Of Goods/Services - Contractors,CLOUD ARCHITECTURE,Talent International,211546,"13,679.77",Information Management Services,SME,Programme Expenditure
UK Statistics Family,Office for National Statistics,05/10/2021,Exp - Purchase Of Goods/Services - Contractors,Strategy And Architecture,Talent International,211546,"42,180.00",Information Management Services,SME,Programme Expenditure
UK Statistics Family,Office for National Statistics,05/10/2021,Exp - Purchase Of Goods/Services - IT Contractual Services,Tech Delivery Legacy Sp,Talent International,211546,"12,959.78",Information Management Services,SME,Programme Expenditure
UK Statistics Family,Office for National Statistics,05/10/2021,Exp - Purchase Of Goods/Services - Incentive Payments,Social Survey Transformation Newport,Sodexo Motivation Solutions U.K. ltd,211548,"138,896.31",Survey Response Incentive Vouchers,Large,Programme Expenditure
UK Statistics Family,Office for National Statistics,05/10/2021,Exp - Purchase Of Goods/Services - Incentive Payments,Social Surveys Division,Sodexo Motivation Solutions U.K. ltd,211548,197.39,Survey Response Incentive Vouchers,Large,Programme Expenditure
UK Statistics Family,Office for National Statistics,05/10/2021,Marketing & Media,Stakeholder Engagement And Comms,M&C Saatchi UK Ltd,211549,"188,978.67",Marketing Services,Large,Programme Expenditure
UK Statistics Family,Office for National Statistics,05/10/2021,Exp - Short-Term Contract & Agency Staff - Full Cost,Census CCS Data Collection,Parity Resources Limited,211551,"3,226.30",Information Management Services,Large,Programme Expenditure
UK Statistics Family,Office for National Statistics,05/10/2021,Exp - Purchase Of Goods/Services - Contractors,Covid Infection Survey,Parity Resources Limited,211551,"4,800.00",Information Management Services,Large,Programme Expenditure
UK Statistics Family,Office for National Statistics,05/10/2021,Exp - Purchase Of Goods/Services - Contractors,Digital Publishing,Parity Resources Limited,211551,"3,160.50",Information Management Services,Large,Programme Expenditure
UK Statistics Family,Office for National Statistics,05/10/2021,Exp - Purchase Of Goods/Services - Contractors,Portfolio Delivery,Parity Resources Limited,211551,"9,448.27",Information Management Services,Large,Programme Expenditure
UK Statistics Family,Office for National Statistics,05/10/2021,Exp - Purchase Of Goods/Services - Contractors,Security Advisory,Parity Resources Limited,211551,"3,588.48",Information Management Services,Large,Programme Expenditure
UK Statistics Family,Office for National Statistics,05/10/2021,Exp - Purchase Of Goods/Services - Contractors,Strategy And Architecture,Parity Resources Limited,211551,"4,510.50",Information Management Services,Large,Programme Expenditure
UK Statistics Family,Office for National Statistics,05/10/2021,Hosting,PHYSICAL SECURITY AND BUSINESS CONTINUITY,Continuity2 Limited,211552,44400,Software Licenses,SME,Programme Expenditure
UK Statistics Family,Office for National Statistics,06/10/2021,Exp - Purchase Of Goods/Services - Contractors,Testing,Concept Information Technology Ltd T/A Concept Resourcing,211557,"9,233.96",Information Management Services,Large,Programme Expenditure
UK Statistics Family,Office for National Statistics,06/10/2021,Exp - Short-Term Contract & Agency Staff - Full Cost,Covid Infection Survey,Concept Information Technology Ltd T/A Concept Resourcing,211557,"3,269.79",Information Management Services,Large,Programme Expenditure
UK Statistics Family,Office for National Statistics,06/10/2021,Exp - Short-Term Contract & Agency Staff - Full Cost,Business Architecture Transformation And Statistical Strategy,Concept Information Technology Ltd T/A Concept Resourcing,211557,"5,125.98",Information Management Services,Large,Programme Expenditure
UK Statistics Family,Office for National Statistics,06/10/2021,Exp - Short-Term Contract & Agency Staff - Full Cost,Public Sector And Households,Concept Information Technology Ltd T/A Concept Resourcing,211557,"14,694.42",Information Management Services,Large,Programme Expenditure
UK Statistics Family,Office for National Statistics,06/10/2021,Exp - Short-Term Contract & Agency Staff - Full Cost,Prices Division,Concept Information Technology Ltd T/A Concept Resourcing,211557,"2,800.75",Information Management Services,Large,Programme Expenditure
UK Statistics Family,Office for National Statistics,06/10/2021,Exp - Short-Term Contract & Agency Staff - Full Cost,Prices Division,Concept Information Technology Ltd T/A Concept Resourcing,211557,"3,294.83",Information Management Services,Large,Programme Expenditure
UK Statistics Family,Office for National Statistics,06/10/2021,Exp - Short-Term Contract & Agency Staff - Full Cost,Prices Division,Concept Information Technology Ltd T/A Concept Resourcing,211557,"7,527.47",Information Management Services,Large,Programme Expenditure
UK Statistics Family,Office for National Statistics,06/10/2021,Exp - Purchase Of Goods/Services - IT Contractual Services,Strategy And Architecture,Medley Business Solutions Ltd,211564,"49,420.80",Information Management Services,Large,Programme Expenditure
UK Statistics Family,Office for National Statistics,06/10/2021,Exp - Purchase Of Goods/Services - Contractors,Digital Publishing,Certes Computing Ltd,211566,"60,207.00",Information Management Services,SME,Programme Expenditure
UK Statistics Family,Office for National Statistics,06/10/2021,Exp - Purchase Of Goods/Services - Contractors,Testing,Malikshaw Interim & Executive,211571,"10,800.00",Information Management Services,SME,Programme Expenditure
UK Statistics Family,Office for National Statistics,06/10/2021,Exp - Purchase Of Goods/Services - Contractors,Programme Delivery,Malikshaw Interim & Executive,211571,"15,480.00",Information Management Services,SME,Programme Expenditure
UK Statistics Family,Office for National Statistics,06/10/2021,Exp - Short-Term Contract & Agency Staff - Full Cost,International Trade And Transactions,Malikshaw Interim & Executive,211571,"5,722.70",Information Management Services,SME,Programme Expenditure
UK Statistics Family,Office for National Statistics,06/10/2021,Exp - Purchase Of Goods/Services - Contractors,Tech Delivery Legacy Sp,Malikshaw Interim & Executive,211571,"15,120.00",Information Management Services,SME,Programme Expenditure
UK Statistics Family,Office for National Statistics,06/10/2021,Exp - Purchase Of Goods/Services - Contractors,Data Science Campus,Malikshaw Interim & Executive,211571,"12,484.80",Information Management Services,SME,Programme Expenditure
UK Statistics Family,Office for National Statistics,06/10/2021,Exp - Purchase Of Goods/Services - Contractors,Business Architecture,Talent International,211575,"12,882.00",Information Management Services,SME,Programme Expenditure
UK Statistics Family,Office for National Statistics,06/10/2021,Exp - Short-Term Contract & Agency Staff - Full Cost,Strategy And Engagement,Talent International,211575,"2,593.67",Information Management Services,SME,Programme Expenditure
UK Statistics Family,Office for National Statistics,06/10/2021,Exp - Purchase Of Goods And Services Consultants,Business Architecture Transformation And Statistical Strategy,Talent International,211575,"13,680.00",Information Management Services,SME,Programme Expenditure
UK Statistics Family,Office for National Statistics,06/10/2021,Exp - Purchase Of Goods/Services - Contractors,Data Architecture,Talent International,211575,"13,657.20",Information Management Services,SME,Programme Expenditure
UK Statistics Family,Office for National Statistics,06/10/2021,Exp - Purchase Of Goods/Services - Contractors,PPP Operations,Talent International,211575,18000,Information Management Services,SME,Programme Expenditure
UK Statistics Family,Office for National Statistics,06/10/2021,Exp - Short-Term Contract & Agency Staff - Full Cost,Social Surveys Division,Talent International,211575,"4,403.85",Information Management Services,SME,Programme Expenditure
UK Statistics Family,Office for National Statistics,06/10/2021,Marketing & Media,Stakeholder Engagement And Comms,M&C Saatchi UK Ltd,211578,"507,139.08",Marketing Services,Large,Programme Expenditure
UK Statistics Family,Office for National Statistics,06/10/2021,Exp - Purchase Of Goods/Services - Contractors,Business Architecture,Parity Resources Limited,211581,"3,960.00",Information Management Services,Large,Programme Expenditure
UK Statistics Family,Office for National Statistics,06/10/2021,Exp - Purchase Of Goods/Services - Contractors,Testing,Parity Resources Limited,211581,"24,365.34",Information Management Services,Large,Programme Expenditure
UK Statistics Family,Office for National Statistics,06/10/2021,Exp - Purchase Of Goods/Services - Contractors,Covid Infection Survey,Parity Resources Limited,211581,1800,Information Management Services,Large,Programme Expenditure
UK Statistics Family,Office for National Statistics,06/10/2021,Exp - Purchase Of Goods/Services - Contractors,Digital Publishing,Parity Resources Limited,211581,5290.8,Information Management Services,Large,Programme Expenditure
UK Statistics Family,Office for National Statistics,06/10/2021,Exp - Purchase Of Goods/Services - Contractors,Digital Publishing,Parity Resources Limited,211581,3490.2,Information Management Services,Large,Programme Expenditure
UK Statistics Family,Office for National Statistics,06/10/2021,Exp - Short-Term Contract & Agency Staff - Full Cost,Business Architecture Transformation And Statistical Strategy,Parity Resources Limited,211581,"12,935.16",Information Management Services,Large,Programme Expenditure
UK Statistics Family,Office for National Statistics,06/10/2021,Exp - Short-Term Contract & Agency Staff - Full Cost,Recruitment ,Parity Resources Limited,211581,732.6,Information Management Services,Large,Programme Expenditure
UK Statistics Family,Office for National Statistics,06/10/2021,Exp - Short-Term Contract & Agency Staff - Full Cost,Recruitment ,Parity Resources Limited,211581,732.6,Information Management Services,Large,Programme Expenditure
UK Statistics Family,Office for National Statistics,06/10/2021,Exp - Purchase Of Goods/Services - Contractors,Security Advisory,Parity Resources Limited,211581,"15,327.94",Information Management Services,Large,Programme Expenditure
UK Statistics Family,Office for National Statistics,06/10/2021,Exp - Purchase Of Goods/Services - Contractors,IT Applications,Parity Resources Limited,211581,"10,592.42",Information Management Services,Large,Programme Expenditure
UK Statistics Family,Office for National Statistics,06/10/2021,Other Goods And Services,Security Advisory,Cabinet Office,211582,"138,900.00",Security Vetting Services,Large,Programme Expenditure
UK Statistics Family,Office for National Statistics,06/10/2021,Exp - Purchase Of Goods/Services - Contractors,Census CCS Data Collection,HMRC.,211584,"63,277.85",Temporary Staff,Large,Programme Expenditure
UK Statistics Family,Office for National Statistics,07/10/2021,Surveys,International Trade And Transactions,Mango Solutions,211755,"11,832.00",Information Management Services,SME,Programme Expenditure
UK Statistics Family,Office for National Statistics,07/10/2021,Surveys,International Trade And Transactions,Mango Solutions,211755,"29,376.00",Information Management Services,SME,Programme Expenditure
UK Statistics Family,Office for National Statistics,07/10/2021,Exp - Purchase Of Goods/Services - Contractors,Business Architecture,Concept Information Technology Ltd T/A Concept Resourcing,211756,"17,353.19",Information Management Services,Large,Programme Expenditure
UK Statistics Family,Office for National Statistics,07/10/2021,Exp - Short-Term Contract & Agency Staff - Full Cost,Senior Management,Concept Information Technology Ltd T/A Concept Resourcing,211756,635.76,Information Management Services,Large,Programme Expenditure
UK Statistics Family,Office for National Statistics,07/10/2021,Exp - Short-Term Contract & Agency Staff - Full Cost,Covid Infection Survey,Concept Information Technology Ltd T/A Concept Resourcing,211756,"1,934.95",Information Management Services,Large,Programme Expenditure
UK Statistics Family,Office for National Statistics,07/10/2021,Exp - Short-Term Contract & Agency Staff - Full Cost,Covid Infection Survey,Concept Information Technology Ltd T/A Concept Resourcing,211756,9698.05,Information Management Services,Large,Programme Expenditure
UK Statistics Family,Office for National Statistics,07/10/2021,Exp - Short-Term Contract & Agency Staff - Full Cost,Covid Infection Survey,Concept Information Technology Ltd T/A Concept Resourcing,211756,7061.27,Information Management Services,Large,Programme Expenditure
UK Statistics Family,Office for National Statistics,07/10/2021,Exp - Short-Term Contract & Agency Staff - Full Cost,Business Architecture Transformation And Statistical Strategy,Concept Information Technology Ltd T/A Concept Resourcing,211756,"3,130.66",Information Management Services,Large,Programme Expenditure
UK Statistics Family,Office for National Statistics,07/10/2021,Exp - Short-Term Contract & Agency Staff - Full Cost,Business Architecture Transformation And Statistical Strategy,Concept Information Technology Ltd T/A Concept Resourcing,211756,"1,579.25",Information Management Services,Large,Programme Expenditure
UK Statistics Family,Office for National Statistics,07/10/2021,Exp - Short-Term Contract & Agency Staff - Full Cost,Business Architecture Transformation And Statistical Strategy,Concept Information Technology Ltd T/A Concept Resourcing,211756,"11,601.79",Information Management Services,Large,Programme Expenditure
UK Statistics Family,Office for National Statistics,07/10/2021,Exp - Purchase Of Goods And Services Consultants,Business Architecture Transformation And Statistical Strategy,Concept Information Technology Ltd T/A Concept Resourcing,211756,"13,224.00",Information Management Services,Large,Programme Expenditure
UK Statistics Family,Office for National Statistics,07/10/2021,Exp - Short-Term Contract & Agency Staff - Full Cost,Ask Business Services,Concept Information Technology Ltd T/A Concept Resourcing,211756,"2,800.75",Information Management Services,Large,Programme Expenditure
UK Statistics Family,Office for National Statistics,07/10/2021,Exp - Short-Term Contract & Agency Staff - Full Cost,Prices Division,Concept Information Technology Ltd T/A Concept Resourcing,211756,"2,979.60",Information Management Services,Large,Programme Expenditure
UK Statistics Family,Office for National Statistics,07/10/2021,Exp - Short-Term Contract & Agency Staff - Full Cost,Prices Division,Concept Information Technology Ltd T/A Concept Resourcing,211756,3088.91,Information Management Services,Large,Programme Expenditure
UK Statistics Family,Office for National Statistics,07/10/2021,Exp - Short-Term Contract & Agency Staff - Full Cost,Prices Division,Concept Information Technology Ltd T/A Concept Resourcing,211756,"9,311.80",Information Management Services,Large,Programme Expenditure
UK Statistics Family,Office for National Statistics,07/10/2021,Exp - Purchase Of Goods/Services - Contractors,Digital Publishing,Certes Computing Ltd,211764,"14,603.40",Information Management Services,SME,Programme Expenditure
UK Statistics Family,Office for National Statistics,07/10/2021,Exp - Purchase Of Goods/Services - Contractors,Best Practice And Impact,Certes Computing Ltd,211764,"12,778.03",Information Management Services,SME,Programme Expenditure
UK Statistics Family,Office for National Statistics,07/10/2021,Exp - Purchase Of Goods/Services - Contractors,Security Advisory,Certes Computing Ltd,211764,"14,987.81",Information Management Services,SME,Programme Expenditure
UK Statistics Family,Office for National Statistics,07/10/2021,Exp - Purchase Of Goods/Services - Contractors,Digital Delivery,Certes Computing Ltd,211764,"12,329.74",Information Management Services,SME,Programme Expenditure
UK Statistics Family,Office for National Statistics,07/10/2021,End User Software And Hardware,Census CCS Data Collection,Cdw Limited,211777,"1,992.00",Software Licenses,Large,Programme Expenditure
UK Statistics Family,Office for National Statistics,07/10/2021,End User Software And Hardware,Census CCS Data Collection,Cdw Limited,211777,996,Software Licenses,Large,Programme Expenditure
UK Statistics Family,Office for National Statistics,07/10/2021,Telecoms,IT Operations,Cdw Limited,211777,79.2,Software Licenses,Large,Programme Expenditure
UK Statistics Family,Office for National Statistics,07/10/2021,End User Software And Hardware,IT Operations,Cdw Limited,211777,"33,963.60",Software Licenses,Large,Programme Expenditure
UK Statistics Family,Office for National Statistics,08/10/2021,"ICT Outsourcing, Maintenance And Support",IT Operations,CTS (Cloud Technology Solutions Ltd),211785,"32,520.72",DST Infrastructure Preparation,Large,Programme Expenditure
UK Statistics Family,Office for National Statistics,08/10/2021,End User Software And Hardware,IT Operations,SmartSurvey ltd,211786,"34,320.00",Software Licenses,SME,Programme Expenditure
UK Statistics Family,Office for National Statistics,08/10/2021,Exp - Purchase Of Goods/Services - Contractors,Digital Publishing,Talent International,211787,"62,555.40",Information Management Services,SME,Programme Expenditure
UK Statistics Family,Office for National Statistics,08/10/2021,Exp - Purchase Of Goods/Services - Contractors,MDR Management,Talent International,211787,"1,950.00",Information Management Services,SME,Programme Expenditure
UK Statistics Family,Office for National Statistics,08/10/2021,Exp - Purchase Of Goods/Services - Contractors,Data As A Service,Talent International,211787,"42,315.00",Information Management Services,SME,Programme Expenditure
UK Statistics Family,Office for National Statistics,08/10/2021,Non IT Maintenance And Hire,Survey Processing Centre,Xerox UK Limited,211788,"25,014.65",Costs Associated with Reprographic Equipment,Large,Programme Expenditure
UK Statistics Family,Office for National Statistics,08/10/2021,Exp - Purchase Of Goods/Services - Contractors,Business Architecture,LA FOSSE ASSOCIATES LIMITED,211789,"14,940.00",Information Management Services,Large,Programme Expenditure
UK Statistics Family,Office for National Statistics,08/10/2021,Exp - Purchase Of Goods/Services - Contractors,WIDER SURVEILLANCE STUDIES,LA FOSSE ASSOCIATES LIMITED,211789,"13,800.00",Information Management Services,Large,Programme Expenditure
UK Statistics Family,Office for National Statistics,08/10/2021,Exp - Short-Term Contract & Agency Staff - Full Cost,Stakeholder Engagement And Comms,SmartSourcing Ltd,211791,"4,352.06",Information Management Services,SME,Programme Expenditure
UK Statistics Family,Office for National Statistics,08/10/2021,Exp - Purchase Of Goods/Services - Contractors,Census CCS Data Collection,SmartSourcing Ltd,211791,"2,924.82",Information Management Services,SME,Programme Expenditure
UK Statistics Family,Office for National Statistics,08/10/2021,Exp - Purchase Of Goods/Services - Contractors,Digital Publishing,SmartSourcing Ltd,211791,"12,946.18",Information Management Services,SME,Programme Expenditure
UK Statistics Family,Office for National Statistics,08/10/2021,Exp - Short-Term Contract & Agency Staff - Full Cost,Recruitment ,SmartSourcing Ltd,211791,"2,930.40",Information Management Services,SME,Programme Expenditure
UK Statistics Family,Office for National Statistics,08/10/2021,Exp - Short-Term Contract & Agency Staff - Full Cost,Recruitment ,SmartSourcing Ltd,211791,"6,593.40",Information Management Services,SME,Programme Expenditure
UK Statistics Family,Office for National Statistics,08/10/2021,Exp - Purchase Of Goods/Services - Contractors,Tech Delivery Data As A Platform,SmartSourcing Ltd,211791,"3,600.00",Information Management Services,SME,Programme Expenditure
UK Statistics Family,Office for National Statistics,08/10/2021,Exp - Purchase Of Goods/Services - Contractors,IT Applications,SmartSourcing Ltd,211791,"3,596.16",Information Management Services,SME,Programme Expenditure
UK Statistics Family,Office for National Statistics,08/10/2021,Telecoms,IT Operations,Bt Global Services,211798,"26,277.92",Telecommunications,Large,Programme Expenditure
UK Statistics Family,Office for National Statistics,08/10/2021,Telecoms,IT Operations,Bt Global Services,211799,"47,707.24",Telecommunications,Large,Programme Expenditure
UK Statistics Family,Office for National Statistics,08/10/2021,Exp - Purchase Of Goods/Services - IT Contractual Services,IT Operations,Medley Business Solutions Ltd,211801,"25,660.80",Information Management Services,Large,Programme Expenditure
UK Statistics Family,Office for National Statistics,08/10/2021,Other Goods And Services,Business Change Support,Bank of England,211806,"100,000.00",Data Acquisition,Large,Programme Expenditure
UK Statistics Family,Office for National Statistics,11/10/2021,Exp - Purchase Of Goods/Services - Contractors,Consultancy Management,Certes Computing Ltd,211954,"13,678.63",Information Management Services,SME,Programme Expenditure
UK Statistics Family,Office for National Statistics,11/10/2021,Exp - Purchase Of Goods/Services - Contractors,Census & Soc Methodology Dd,Certes Computing Ltd,211954,"8,638.70",Information Management Services,SME,Programme Expenditure
UK Statistics Family,Office for National Statistics,11/10/2021,Exp - Purchase Of Goods/Services - Contractors,Data Architecture,Certes Computing Ltd,211954,"10,798.92",Information Management Services,SME,Programme Expenditure
UK Statistics Family,Office for National Statistics,11/10/2021,"ICT Outsourcing, Maintenance And Support",Senior Management Team Design,Totalmobile Ltd,211959,"115,533.60",Software Licenses,SME,Programme Expenditure
UK Statistics Family,Office for National Statistics,11/10/2021,Exp - Purchase Of Goods/Services - Contractors,Business Architecture,Malikshaw Interim & Executive,211960,"13,809.10",Information Management Services,SME,Programme Expenditure
UK Statistics Family,Office for National Statistics,11/10/2021,Exp - Purchase Of Goods/Services - Contractors,Consultancy Management,Malikshaw Interim & Executive,211960,"15,126.67",Information Management Services,SME,Programme Expenditure
UK Statistics Family,Office for National Statistics,11/10/2021,Exp - Purchase Of Goods/Services - Contractors,Data Architecture,Malikshaw Interim & Executive,211960,"15,120.00",Information Management Services,SME,Programme Expenditure
UK Statistics Family,Office for National Statistics,11/10/2021,EXP - PURCHASE OF GOODS/SERVICES -  NON IT CONTRACTUAL PAYMENTS,Covid Infection Survey,HH Associates Ltd,211961,"37,478.70",Print and Post Services,SME,Programme Expenditure
UK Statistics Family,Office for National Statistics,11/10/2021,Exp - Purchase Of Goods/Services - Contractors,Business Architecture,Talent International,211962,13319.78,Information Management Services,SME,Programme Expenditure
UK Statistics Family,Office for National Statistics,11/10/2021,Exp - Short-Term Contract & Agency Staff - Full Cost,Recruitment ,Talent International,211962,4106.64,Information Management Services,SME,Programme Expenditure
UK Statistics Family,Office for National Statistics,11/10/2021,Exp - Purchase Of Goods/Services - Contractors,Data Architecture,Talent International,211962,"15,960.00",Information Management Services,SME,Programme Expenditure
UK Statistics Family,Office for National Statistics,11/10/2021,Exp - Purchase Of Goods/Services - Contractors,Business Architecture,LA FOSSE ASSOCIATES LIMITED,211964,"24,465.00",Information Management Services,Large,Programme Expenditure
UK Statistics Family,Office for National Statistics,11/10/2021,Exp - Purchase Of Goods/Services - Contractors,Business Architecture,LA FOSSE ASSOCIATES LIMITED,211964,"17,280.00",Information Management Services,Large,Programme Expenditure
UK Statistics Family,Office for National Statistics,11/10/2021,Exp - Purchase Of Goods/Services - Contractors,Business Architecture,LA FOSSE ASSOCIATES LIMITED,211964,"15,120.00",Information Management Services,Large,Programme Expenditure
UK Statistics Family,Office for National Statistics,11/10/2021,Exp - Purchase Of Goods/Services - Contractors,Business Architecture,LA FOSSE ASSOCIATES LIMITED,211964,27025,Information Management Services,Large,Programme Expenditure
UK Statistics Family,Office for National Statistics,11/10/2021,Exp - Purchase Of Goods/Services - Contractors,Testing,LA FOSSE ASSOCIATES LIMITED,211964,"16,100.00",Information Management Services,Large,Programme Expenditure
UK Statistics Family,Office for National Statistics,11/10/2021,Exp - Purchase Of Goods/Services - Contractors,Consultancy Management,LA FOSSE ASSOCIATES LIMITED,211964,"12,600.00",Information Management Services,Large,Programme Expenditure
UK Statistics Family,Office for National Statistics,11/10/2021,Marketing & Media,Stakeholder Engagement And Comms,M&C Saatchi UK Ltd,211966,"43,795.77",Marketing Services,Large,Programme Expenditure
UK Statistics Family,Office for National Statistics,12/10/2021,Exp - Short-Term Contract & Agency Staff - Full Cost,Census CCS Data Collection,Concept Information Technology Ltd T/A Concept Resourcing,212064,"6,508.37",Information Management Services,Large,Programme Expenditure
UK Statistics Family,Office for National Statistics,12/10/2021,Exp - Short-Term Contract & Agency Staff - Full Cost,Business Change Support,Concept Information Technology Ltd T/A Concept Resourcing,212064,"3,912.61",Information Management Services,Large,Programme Expenditure
UK Statistics Family,Office for National Statistics,12/10/2021,Exp - Short-Term Contract & Agency Staff - Full Cost,N A Coordination,Concept Information Technology Ltd T/A Concept Resourcing,212064,"2,754.96",Information Management Services,Large,Programme Expenditure
UK Statistics Family,Office for National Statistics,12/10/2021,Exp - Short-Term Contract & Agency Staff - Full Cost,Productivity Research And Professional Development,Concept Information Technology Ltd T/A Concept Resourcing,212064,-21.85,Information Management Services,Large,Programme Expenditure
UK Statistics Family,Office for National Statistics,12/10/2021,Exp - Short-Term Contract & Agency Staff - Full Cost,Productivity Research And Professional Development,Concept Information Technology Ltd T/A Concept Resourcing,212064,-17.92,Information Management Services,Large,Programme Expenditure
UK Statistics Family,Office for National Statistics,12/10/2021,Exp - Short-Term Contract & Agency Staff - Full Cost,Productivity Research And Professional Development,Concept Information Technology Ltd T/A Concept Resourcing,212064,-2.66,Information Management Services,Large,Programme Expenditure
UK Statistics Family,Office for National Statistics,12/10/2021,Exp - Purchase Of Goods And Services Consultants,Productivity Research And Professional Development,Concept Information Technology Ltd T/A Concept Resourcing,212064,-1.33,Information Management Services,Large,Programme Expenditure
UK Statistics Family,Office for National Statistics,12/10/2021,Exp - Short-Term Contract & Agency Staff - Full Cost,Business Architecture Transformation And Statistical Strategy,Concept Information Technology Ltd T/A Concept Resourcing,212064,"3,909.84",Information Management Services,Large,Programme Expenditure
UK Statistics Family,Office for National Statistics,12/10/2021,Exp - Short-Term Contract & Agency Staff - Full Cost,Data Architecture,Concept Information Technology Ltd T/A Concept Resourcing,212064,"2,800.75",Information Management Services,Large,Programme Expenditure
UK Statistics Family,Office for National Statistics,12/10/2021,Exp - Purchase Of Goods/Services - IT Contractual Services,CDIO UNGP,Concept Information Technology Ltd T/A Concept Resourcing,212064,"13,680.00",Information Management Services,Large,Programme Expenditure
UK Statistics Family,Office for National Statistics,12/10/2021,Exp - Purchase Of Goods/Services - IT Contractual Services,Tech Delivery Legacy Sp,Concept Information Technology Ltd T/A Concept Resourcing,212064,"7,800.00",Information Management Services,Large,Programme Expenditure
UK Statistics Family,Office for National Statistics,12/10/2021,Exp - Purchase Of Goods/Services - Contractors,Social Survey Transformation Titchfield,Concept Information Technology Ltd T/A Concept Resourcing,212064,"10,742.40",Information Management Services,Large,Programme Expenditure
UK Statistics Family,Office for National Statistics,12/10/2021,Exp - Short-Term Contract & Agency Staff - Full Cost,Prices Division,Concept Information Technology Ltd T/A Concept Resourcing,212064,"4,029.74",Information Management Services,Large,Programme Expenditure
UK Statistics Family,Office for National Statistics,12/10/2021,Exp - Short-Term Contract & Agency Staff - Full Cost,Business Outputs And Developments,Concept Information Technology Ltd T/A Concept Resourcing,212064,"6,692.62",Information Management Services,Large,Programme Expenditure
UK Statistics Family,Office for National Statistics,12/10/2021,Exp - Purchase Of Goods/Services - Contractors,Business Architecture,La International,212068,"4,673.95",Information Management Services,SME,Programme Expenditure
UK Statistics Family,Office for National Statistics,12/10/2021,Exp - Purchase Of Goods/Services - Contractors,Business Architecture,La International,212068,"3,588.30",Information Management Services,SME,Programme Expenditure
UK Statistics Family,Office for National Statistics,12/10/2021,Exp - Purchase Of Goods/Services - Contractors,Testing,La International,212068,"7,529.04",Information Management Services,SME,Programme Expenditure
UK Statistics Family,Office for National Statistics,12/10/2021,Exp - Purchase Of Goods/Services - Contractors,Testing,La International,212068,"3,817.65",Information Management Services,SME,Programme Expenditure
UK Statistics Family,Office for National Statistics,12/10/2021,Exp - Purchase Of Goods/Services - Contractors,HALE,La International,212068,"1,931.00",Information Management Services,SME,Programme Expenditure
UK Statistics Family,Office for National Statistics,12/10/2021,Exp - Purchase Of Goods/Services - Contractors,Data Architecture,La International,212068,"2,870.64",Information Management Services,SME,Programme Expenditure
UK Statistics Family,Office for National Statistics,12/10/2021,Exp - Purchase Of Goods/Services - Contractors,Data Architecture,La International,212068,717.66,Information Management Services,SME,Programme Expenditure
UK Statistics Family,Office for National Statistics,12/10/2021,Exp - Purchase Of Goods/Services - Contractors,CLOUD ARCHITECTURE,La International,212068,"3,844.62",Information Management Services,SME,Programme Expenditure
UK Statistics Family,Office for National Statistics,12/10/2021,Exp - Purchase Of Goods/Services - Contractors,Tech Delivery Legacy Sp,La International,212068,"14,096.88",Information Management Services,SME,Programme Expenditure
UK Statistics Family,Office for National Statistics,12/10/2021,Exp - Purchase Of Goods/Services - Contractors,Tech Delivery Data As A Platform,La International,212068,"13,276.72",Information Management Services,SME,Programme Expenditure
UK Statistics Family,Office for National Statistics,12/10/2021,Exp - Purchase Of Goods/Services - Contractors,Tech Delivery Next Gen IT And Infrastructure,La International,212068,"32,487.16",Information Management Services,SME,Programme Expenditure
UK Statistics Family,Office for National Statistics,12/10/2021,Exp - Purchase Of Goods/Services - Contractors,IT Applications,La International,212068,30539.3,Information Management Services,SME,Programme Expenditure
UK Statistics Family,Office for National Statistics,12/10/2021,Exp - Short-Term Contract & Agency Staff - Full Cost,Social Survey Transformation Titchfield,La International,212068,867.02,Information Management Services,SME,Programme Expenditure
UK Statistics Family,Office for National Statistics,12/10/2021,Print & Post,Social Survey Transformation Newport,APS Group,212071,"48,608.13",Print and Post Services,Large,Programme Expenditure
UK Statistics Family,Office for National Statistics,12/10/2021,Exp - Short-Term Contract & Agency Staff - Full Cost,Census CCS Data Collection,Malikshaw Interim & Executive,212073,485.28,Information Management Services,SME,Programme Expenditure
UK Statistics Family,Office for National Statistics,12/10/2021,Exp - Purchase Of Goods/Services - Contractors,Consultancy Management,Malikshaw Interim & Executive,212073,"11,001.22",Information Management Services,SME,Programme Expenditure
UK Statistics Family,Office for National Statistics,12/10/2021,Exp - Short-Term Contract & Agency Staff - Full Cost,MDR Management,Malikshaw Interim & Executive,212073,"2,644.78",Information Management Services,SME,Programme Expenditure
UK Statistics Family,Office for National Statistics,12/10/2021,Exp - Short-Term Contract & Agency Staff - Full Cost,Data Architecture,Malikshaw Interim & Executive,212073,"56,055.77",Information Management Services,SME,Programme Expenditure
UK Statistics Family,Office for National Statistics,12/10/2021,Exp - Short-Term Contract & Agency Staff - Full Cost,Interviewer Management TU,Malikshaw Interim & Executive,212073,"4,822.48",Information Management Services,SME,Programme Expenditure
UK Statistics Family,Office for National Statistics,12/10/2021,Exp - Short-Term Contract & Agency Staff - Full Cost,Ask Business Services,Talent International,212077,150.43,Information Management Services,SME,Programme Expenditure
UK Statistics Family,Office for National Statistics,12/10/2021,Exp - Short-Term Contract & Agency Staff - Full Cost,Ask Business Services,Talent International,212077,2707.68,Information Management Services,SME,Programme Expenditure
UK Statistics Family,Office for National Statistics,12/10/2021,Exp - Short-Term Contract & Agency Staff - Full Cost,MDR Management,Talent International,212077,45.78,Information Management Services,SME,Programme Expenditure
UK Statistics Family,Office for National Statistics,12/10/2021,Exp - Short-Term Contract & Agency Staff - Full Cost,Data Architecture,Talent International,212077,"31,190.48",Information Management Services,SME,Programme Expenditure
UK Statistics Family,Office for National Statistics,12/10/2021,Exp - Purchase Of Goods/Services - Contractors,CLOUD ARCHITECTURE,Talent International,212077,"14,820.00",Information Management Services,SME,Programme Expenditure
UK Statistics Family,Office for National Statistics,12/10/2021,Exp - Purchase Of Goods/Services - IT Contractual Services,Tech Delivery Next Gen IT And Infrastructure,Diegesis Limited,212078,"26,220.00",Information Management Services,Large,Programme Expenditure
UK Statistics Family,Office for National Statistics,13/10/2021,Telecoms,IT Operations,Crown Hosting Data Centres Limited,212085,860,Information Management Services,SME,Programme Expenditure
UK Statistics Family,Office for National Statistics,13/10/2021,Hosting,IT Operations,Crown Hosting Data Centres Limited,212085,65184.77,Information Management Services,SME,Programme Expenditure
UK Statistics Family,Office for National Statistics,13/10/2021,Exp - Purchase Of Goods/Services - IT Contractual Services,Tech Delivery Data As A Platform,Kainos,212087,"27,967.59",Information Management Services,Large,Programme Expenditure
UK Statistics Family,Office for National Statistics,13/10/2021,Hosting,Tech Delivery Data As A Platform,Kainos,212087,756.4,Information Management Services,Large,Programme Expenditure
UK Statistics Family,Office for National Statistics,13/10/2021,Exp - Purchase Of Goods/Services - Contractors,Programme Delivery,Certes Computing Ltd,212102,"10,247.63",Information Management Services,SME,Programme Expenditure
UK Statistics Family,Office for National Statistics,13/10/2021,Exp - Purchase Of Goods/Services - Contractors,INTEGRATED DATA STRATEGY AND DELIVERY,Certes Computing Ltd,212102,"13,678.63",Information Management Services,SME,Programme Expenditure
UK Statistics Family,Office for National Statistics,13/10/2021,Exp - Purchase Of Goods/Services - Contractors,Strategy And Architecture,Certes Computing Ltd,212102,"11,657.18",Information Management Services,SME,Programme Expenditure
UK Statistics Family,Office for National Statistics,13/10/2021,Exp - Purchase Of Goods/Services - Contractors,Tech Delivery Legacy Sp,Certes Computing Ltd,212102,"13,678.63",Information Management Services,SME,Programme Expenditure
UK Statistics Family,Office for National Statistics,13/10/2021,Exp - Purchase Of Goods/Services - Contractors,Digital Delivery,Certes Computing Ltd,212102,"14,359.44",Information Management Services,SME,Programme Expenditure
UK Statistics Family,Office for National Statistics,13/10/2021,Exp - Purchase Of Goods And Services Consultants,Consultancy Management,Deloitte,212104,"92,701.20",Consultancy,Large,Programme Expenditure
UK Statistics Family,Office for National Statistics,13/10/2021,Exp - Short-Term Contract & Agency Staff - Full Cost,International Trade And Transactions,Malikshaw Interim & Executive,212110,"5,328.35",Information Management Services,SME,Programme Expenditure
UK Statistics Family,Office for National Statistics,13/10/2021,Exp - Short-Term Contract & Agency Staff - Full Cost,International Trade And Transactions,Malikshaw Interim & Executive,212110,"5,972.16",Information Management Services,SME,Programme Expenditure
UK Statistics Family,Office for National Statistics,13/10/2021,Exp - Purchase Of Goods/Services - Contractors,Data As A Service,Malikshaw Interim & Executive,212110,"19,879.20",Information Management Services,SME,Programme Expenditure
UK Statistics Family,Office for National Statistics,13/10/2021,Exp - Purchase Of Goods/Services - Contractors,Data As A Service,Malikshaw Interim & Executive,212110,"15,126.67",Information Management Services,SME,Programme Expenditure
UK Statistics Family,Office for National Statistics,13/10/2021,Hosting,IT Operations,CTS (Cloud Technology Solutions Ltd),212113,"61,740.52",DST Infrastructure Preparation,Large,Programme Expenditure
UK Statistics Family,Office for National Statistics,13/10/2021,Hosting,IT Operations,Amazon Web Services Inc,212117,"50,800.59",Information Management Services,Large,Programme Expenditure
UK Statistics Family,Office for National Statistics,13/10/2021,Exp - Short-Term Contract & Agency Staff - Full Cost,2023 CENSUS DATA TRANSFORMATION,Talent International,212118,8429.42,Information Management Services,SME,Programme Expenditure
UK Statistics Family,Office for National Statistics,13/10/2021,Exp - Short-Term Contract & Agency Staff - Full Cost,Census CCS Data Collection,Talent International,212118,"17,717.38",Information Management Services,SME,Programme Expenditure
UK Statistics Family,Office for National Statistics,13/10/2021,Exp - Purchase Of Goods/Services - Contractors,International Trade And Transactions,Talent International,212118,"6,552.00",Information Management Services,SME,Programme Expenditure
UK Statistics Family,Office for National Statistics,13/10/2021,Exp - Purchase Of Goods/Services - Contractors,INTEGRATED DATA STRATEGY AND DELIVERY,Talent International,212118,13800,Information Management Services,SME,Programme Expenditure
UK Statistics Family,Office for National Statistics,13/10/2021,Exp - Purchase Of Goods/Services - Contractors,Data Architecture,Talent International,212118,"37,644.00",Information Management Services,SME,Programme Expenditure
UK Statistics Family,Office for National Statistics,13/10/2021,Exp - Purchase Of Goods/Services - Contractors,Tech Delivery Next Gen IT And Infrastructure,Talent International,212118,23399.76,Information Management Services,SME,Programme Expenditure
UK Statistics Family,Office for National Statistics,13/10/2021,Exp - Purchase Of Goods/Services - Contractors,Digital Delivery,Talent International,212118,"11,491.20",Information Management Services,SME,Programme Expenditure
UK Statistics Family,Office for National Statistics,13/10/2021,Non IT Maintenance And Hire,Survey Processing Centre,Xerox UK Limited,212119,"134,859.60",Lease of Reprographic Equipment,Large,Programme Expenditure
UK Statistics Family,Office for National Statistics,13/10/2021,Exp - Purchase Of Goods/Services - IT Contractual Services,Tech Delivery Data As A Platform,Insight Direct,212123,"94,020.62",Information Management Services,Large,Programme Expenditure
UK Statistics Family,Office for National Statistics,13/10/2021,Telecoms,Tech Delivery Next Gen IT And Infrastructure,Freedom Communications (UK) Ltd,212127,"5,161.95",Telecommunications,Large,Programme Expenditure
UK Statistics Family,Office for National Statistics,13/10/2021,Telecoms,IT Operations,Freedom Communications (UK) Ltd,212127,"55,147.93",Telecommunications,Large,Programme Expenditure
UK Statistics Family,Office for National Statistics,13/10/2021,"ICT Outsourcing, Maintenance And Support",Researcher Support And Data Access ,Equiniti-TopLevel,212130,"43,407.00",Information Management Services,SME,Programme Expenditure
UK Statistics Family,Office for National Statistics,13/10/2021,Exp - Short-Term Contract & Agency Staff - Full Cost,Business Architecture Transformation And Statistical Strategy,Parity Resources Limited,212131,800.98,Information Management Services,Large,Programme Expenditure
UK Statistics Family,Office for National Statistics,13/10/2021,Exp - Purchase Of Goods/Services - Contractors,Data Architecture,Parity Resources Limited,212131,"20,813.18",Information Management Services,Large,Programme Expenditure
UK Statistics Family,Office for National Statistics,13/10/2021,Exp - Purchase Of Goods/Services - Contractors,CLOUD ARCHITECTURE,Parity Resources Limited,212131,"6,861.00",Information Management Services,Large,Programme Expenditure
UK Statistics Family,Office for National Statistics,13/10/2021,Exp - Purchase Of Goods/Services - Contractors,Strategy And Architecture,Parity Resources Limited,212131,"4,510.50",Information Management Services,Large,Programme Expenditure
UK Statistics Family,Office for National Statistics,15/10/2021,Exp - Purchase Of Goods/Services - Contractors,Business Architecture,Talent International,212294,"3,390.00",Information Management Services,SME,Programme Expenditure
UK Statistics Family,Office for National Statistics,15/10/2021,Exp - Short-Term Contract & Agency Staff - Full Cost,International Trade And Transactions,Talent International,212294,"4,106.64",Information Management Services,SME,Programme Expenditure
UK Statistics Family,Office for National Statistics,15/10/2021,Exp - Short-Term Contract & Agency Staff - Full Cost,Data Architecture,Talent International,212294,"1,809.20",Information Management Services,SME,Programme Expenditure
UK Statistics Family,Office for National Statistics,15/10/2021,Exp - Short-Term Contract & Agency Staff - Full Cost,Data Architecture,Talent International,212294,"7,854.36",Information Management Services,SME,Programme Expenditure
UK Statistics Family,Office for National Statistics,15/10/2021,Exp - Purchase Of Goods/Services - Contractors,Data Architecture,Talent International,212294,"11,880.00",Information Management Services,SME,Programme Expenditure
UK Statistics Family,Office for National Statistics,15/10/2021,Exp - Purchase Of Goods/Services - Contractors,CDIO UNGP,Talent International,212294,"14,796.00",Information Management Services,SME,Programme Expenditure
UK Statistics Family,Office for National Statistics,15/10/2021,Exp - Purchase Of Goods/Services - Contractors,Tech Delivery Data As A Platform,Talent International,212294,"13,679.77",Information Management Services,SME,Programme Expenditure
UK Statistics Family,Office for National Statistics,15/10/2021,Exp - Purchase Of Goods/Services - IT Contractual Services,Tech Delivery Next Gen IT And Infrastructure,Diegesis Limited,212297,25080,Information Management Services,Large,Programme Expenditure
UK Statistics Family,Office for National Statistics,15/10/2021,Exp - Purchase Of Goods/Services - Incentive Payments,Strategy And Engagement,Sodexo Motivation Solutions U.K. ltd,212299,"15,000.88",Survey Response Incentive Vouchers,Large,Programme Expenditure
UK Statistics Family,Office for National Statistics,15/10/2021,Exp - Purchase Of Goods/Services - Incentive Payments,Survey Management,Sodexo Motivation Solutions U.K. ltd,212299,19629.44,Survey Response Incentive Vouchers,Large,Programme Expenditure
UK Statistics Family,Office for National Statistics,15/10/2021,Exp - Purchase Of Goods/Services - Incentive Payments,Survey Management,Sodexo Motivation Solutions U.K. ltd,212299,"3,789.70",Survey Response Incentive Vouchers,Large,Programme Expenditure
UK Statistics Family,Office for National Statistics,15/10/2021,Exp - Purchase Of Goods/Services - Incentive Payments,Survey Management,Sodexo Motivation Solutions U.K. ltd,212299,"3,079.13",Survey Response Incentive Vouchers,Large,Programme Expenditure
UK Statistics Family,Office for National Statistics,15/10/2021,Exp - Purchase Of Goods/Services - Incentive Payments,Survey Management,Sodexo Motivation Solutions U.K. ltd,212299,"1,717.21",Survey Response Incentive Vouchers,Large,Programme Expenditure
UK Statistics Family,Office for National Statistics,15/10/2021,Exp - Purchase Of Goods/Services - Incentive Payments,Survey Management,Sodexo Motivation Solutions U.K. ltd,212299,55824.01,Survey Response Incentive Vouchers,Large,Programme Expenditure
UK Statistics Family,Office for National Statistics,15/10/2021,Exp - Purchase Of Goods/Services - Contractors,Business Architecture,LA FOSSE ASSOCIATES LIMITED,212300,"15,180.00",Information Management Services,Large,Programme Expenditure
UK Statistics Family,Office for National Statistics,15/10/2021,Exp - Purchase Of Goods/Services - Contractors,Data Architecture,LA FOSSE ASSOCIATES LIMITED,212300,"20,310.00",Information Management Services,Large,Programme Expenditure
UK Statistics Family,Office for National Statistics,15/10/2021,Marketing & Media,Stakeholder Engagement And Comms,M&C Saatchi UK Ltd,212302,"62,132.41",Marketing Services,Large,Programme Expenditure
UK Statistics Family,Office for National Statistics,15/10/2021,Exp - Purchase Of Goods/Services - Contractors,Commercial Services,Gardiner & Theobald LLP,212303,"24,790.00",Temporary Staff,Large,Programme Expenditure
UK Statistics Family,Office for National Statistics,15/10/2021,Exp - Purchase Of Goods/Services - Contractors,Commercial Services,Gardiner & Theobald LLP,212303,"44,750.00",Temporary Staff,Large,Programme Expenditure
UK Statistics Family,Office for National Statistics,15/10/2021,Fixtures & Fittings At Cost - Additions,Property Newport,Orange box Limited,212305,"60,661.15",Office Furniture,SME,Programme Expenditure
UK Statistics Family,Office for National Statistics,15/10/2021,Fixtures & Fittings At Cost - Additions,Property Titchfield,Orange box Limited,212305,"6,336.00",Office Furniture,SME,Programme Expenditure
UK Statistics Family,Office for National Statistics,15/10/2021,Exp - Purchase Of Goods/Services - Contractors,Business Architecture,Parity Resources Limited,212306,"3,600.00",Information Management Services,Large,Programme Expenditure
UK Statistics Family,Office for National Statistics,15/10/2021,Exp - Purchase Of Goods/Services - Contractors,Digital Publishing,Parity Resources Limited,212306,"6,711.00",Information Management Services,Large,Programme Expenditure
UK Statistics Family,Office for National Statistics,15/10/2021,Exp - Purchase Of Goods/Services - Contractors,International Trade And Transactions,Parity Resources Limited,212306,640.8,Information Management Services,Large,Programme Expenditure
UK Statistics Family,Office for National Statistics,15/10/2021,Exp - Purchase Of Goods/Services - Contractors,Analysis Microdata And Engagement,Parity Resources Limited,212306,"1,228.58",Information Management Services,Large,Programme Expenditure
UK Statistics Family,Office for National Statistics,15/10/2021,Exp - Purchase Of Goods/Services - Contractors,ECONOMIC CHANGE,Parity Resources Limited,212306,"11,534.40",Information Management Services,Large,Programme Expenditure
UK Statistics Family,Office for National Statistics,15/10/2021,Exp - Short-Term Contract & Agency Staff - Full Cost,Recruitment ,Parity Resources Limited,212306,732.6,Information Management Services,Large,Programme Expenditure
UK Statistics Family,Office for National Statistics,15/10/2021,Exp - Short-Term Contract & Agency Staff - Full Cost,Recruitment ,Parity Resources Limited,212306,732.6,Information Management Services,Large,Programme Expenditure
UK Statistics Family,Office for National Statistics,15/10/2021,Exp - Purchase Of Goods/Services - Contractors,Security Advisory,Parity Resources Limited,212306,"5,946.62",Information Management Services,Large,Programme Expenditure
UK Statistics Family,Office for National Statistics,15/10/2021,Exp - Short-Term Contract & Agency Staff - Full Cost,Data Architecture,Parity Resources Limited,212306,"2,197.80",Information Management Services,Large,Programme Expenditure
UK Statistics Family,Office for National Statistics,15/10/2021,Exp - Purchase Of Goods/Services - Contractors,Data Architecture,Parity Resources Limited,212306,"3,592.56",Information Management Services,Large,Programme Expenditure
UK Statistics Family,Office for National Statistics,15/10/2021,Exp - Purchase Of Goods/Services - Contractors,CLOUD ARCHITECTURE,Parity Resources Limited,212306,"3,430.50",Information Management Services,Large,Programme Expenditure
UK Statistics Family,Office for National Statistics,15/10/2021,Exp - Purchase Of Goods/Services - Contractors,Strategy And Architecture,Parity Resources Limited,212306,"4,510.50",Information Management Services,Large,Programme Expenditure
UK Statistics Family,Office for National Statistics,15/10/2021,Exp - Purchase Of Goods/Services - Contractors,IT Applications,Parity Resources Limited,212306,8714.88,Information Management Services,Large,Programme Expenditure
UK Statistics Family,Office for National Statistics,15/10/2021,Exp - Purchase Of Goods/Services - Contractors,Business Statistics Transformation,Parity Resources Limited,212306,448.56,Information Management Services,Large,Programme Expenditure
UK Statistics Family,Office for National Statistics,15/10/2021,Exp - Purchase Of Goods/Services - Incentive Payments,Survey Management,Park Retail Ltd,212311,"129,413.92",Survey Response Incentive Vouchers,Large,Programme Expenditure
UK Statistics Family,Office for National Statistics,15/10/2021,Buildings Under Construction,Property Newport,Vinci Construction UK Limited,212312,"44,238.68",Facilities Mangement Services,Large,Programme Expenditure
UK Statistics Family,Office for National Statistics,15/10/2021,Exp - Purchase Of Goods/Services - Contractors,Stakeholder Engagement And Comms,Concept Information Technology Ltd T/A Concept Resourcing,212314,627.27,Information Management Services,Large,Programme Expenditure
UK Statistics Family,Office for National Statistics,15/10/2021,Exp - Short-Term Contract & Agency Staff - Full Cost,Covid Infection Survey,Concept Information Technology Ltd T/A Concept Resourcing,212314,"3,445.82",Information Management Services,Large,Programme Expenditure
UK Statistics Family,Office for National Statistics,15/10/2021,Exp - Short-Term Contract & Agency Staff - Full Cost,Business Change Support,Concept Information Technology Ltd T/A Concept Resourcing,212314,"3,912.61",Information Management Services,Large,Programme Expenditure
UK Statistics Family,Office for National Statistics,15/10/2021,Exp - Short-Term Contract & Agency Staff - Full Cost,Business Change Support,Concept Information Technology Ltd T/A Concept Resourcing,212314,"3,912.61",Information Management Services,Large,Programme Expenditure
UK Statistics Family,Office for National Statistics,15/10/2021,Exp - Short-Term Contract & Agency Staff - Full Cost,Business Change Support,Concept Information Technology Ltd T/A Concept Resourcing,212314,"3,912.61",Information Management Services,Large,Programme Expenditure
UK Statistics Family,Office for National Statistics,15/10/2021,Exp - Short-Term Contract & Agency Staff - Full Cost,Business Change Support,Concept Information Technology Ltd T/A Concept Resourcing,212314,"2,525.39",Information Management Services,Large,Programme Expenditure
UK Statistics Family,Office for National Statistics,15/10/2021,Exp - Short-Term Contract & Agency Staff - Full Cost,Business Change Support,Concept Information Technology Ltd T/A Concept Resourcing,212314,2352.31,Information Management Services,Large,Programme Expenditure
UK Statistics Family,Office for National Statistics,15/10/2021,Exp - Short-Term Contract & Agency Staff - Full Cost,Business Change Support,Concept Information Technology Ltd T/A Concept Resourcing,212314,10152.28,Information Management Services,Large,Programme Expenditure
UK Statistics Family,Office for National Statistics,15/10/2021,Exp - Short-Term Contract & Agency Staff - Full Cost,Strategy And Engagement,Concept Information Technology Ltd T/A Concept Resourcing,212314,437.89,Information Management Services,Large,Programme Expenditure
UK Statistics Family,Office for National Statistics,15/10/2021,Exp - Purchase Of Goods/Services - Contractors,Census & Soc Methodology Dd,Concept Information Technology Ltd T/A Concept Resourcing,212314,"8,661.67",Information Management Services,Large,Programme Expenditure
UK Statistics Family,Office for National Statistics,15/10/2021,Exp - Short-Term Contract & Agency Staff - Full Cost,Data Architecture,Concept Information Technology Ltd T/A Concept Resourcing,212314,3132.43,Information Management Services,Large,Programme Expenditure
UK Statistics Family,Office for National Statistics,15/10/2021,Exp - Short-Term Contract & Agency Staff - Full Cost,Public Sector And Households,Concept Information Technology Ltd T/A Concept Resourcing,212314,997.85,Information Management Services,Large,Programme Expenditure
UK Statistics Family,Office for National Statistics,15/10/2021,Exp - Short-Term Contract & Agency Staff - Full Cost,Business Statistics Transformation,Concept Information Technology Ltd T/A Concept Resourcing,212314,"9,195.42",Information Management Services,Large,Programme Expenditure
UK Statistics Family,Office for National Statistics,15/10/2021,Exp - Purchase Of Goods/Services - IT Contractual Services,Strategy And Architecture,Ibm United Kingdom Ltd,212317,"36,954.76",Information Management Services,Large,Programme Expenditure
UK Statistics Family,Office for National Statistics,15/10/2021,Exp - Purchase Of Goods/Services - Contractors,Data Architecture,Certes Computing Ltd,212321,5759.42,Information Management Services,SME,Programme Expenditure
UK Statistics Family,Office for National Statistics,15/10/2021,Exp - Purchase Of Goods/Services - Contractors,Data Architecture,Certes Computing Ltd,212321,"28,170.63",Information Management Services,SME,Programme Expenditure
UK Statistics Family,Office for National Statistics,15/10/2021,Exp - Purchase Of Goods/Services - Contractors,Testing,La International,212322,"10,764.86",Information Management Services,SME,Programme Expenditure
UK Statistics Family,Office for National Statistics,15/10/2021,Exp - Purchase Of Goods/Services - Contractors,Data Architecture,La International,212322,-717.66,Information Management Services,SME,Programme Expenditure
UK Statistics Family,Office for National Statistics,15/10/2021,Exp - Purchase Of Goods/Services - Contractors,Data Architecture,La International,212322,704.84,Information Management Services,SME,Programme Expenditure
UK Statistics Family,Office for National Statistics,15/10/2021,Exp - Purchase Of Goods/Services - Contractors,Data Architecture,La International,212322,"20,376.54",Information Management Services,SME,Programme Expenditure
UK Statistics Family,Office for National Statistics,15/10/2021,Exp - Purchase Of Goods/Services - Contractors,Data Architecture,La International,212322,"9,867.82",Information Management Services,SME,Programme Expenditure
UK Statistics Family,Office for National Statistics,15/10/2021,Exp - Purchase Of Goods/Services - Contractors,Data Architecture,La International,212322,"7,048.44",Information Management Services,SME,Programme Expenditure
UK Statistics Family,Office for National Statistics,15/10/2021,Exp - Short-Term Contract & Agency Staff - Full Cost,Census CCS Data Collection,Malikshaw Interim & Executive,212329,"3,705.52",Information Management Services,SME,Programme Expenditure
UK Statistics Family,Office for National Statistics,15/10/2021,Exp - Short-Term Contract & Agency Staff - Full Cost,MDR Management,Malikshaw Interim & Executive,212329,"4,976.80",Information Management Services,SME,Programme Expenditure
UK Statistics Family,Office for National Statistics,15/10/2021,Exp - Short-Term Contract & Agency Staff - Full Cost,Data Architecture,Malikshaw Interim & Executive,212329,"3,680.58",Information Management Services,SME,Programme Expenditure
UK Statistics Family,Office for National Statistics,15/10/2021,Exp - Purchase Of Goods/Services - Contractors,Strategy And Architecture,Malikshaw Interim & Executive,212329,"5,401.20",Information Management Services,SME,Programme Expenditure
UK Statistics Family,Office for National Statistics,15/10/2021,Exp - Purchase Of Goods/Services - Contractors,Social Surveys Division,Malikshaw Interim & Executive,212329,"6,518.40",Information Management Services,SME,Programme Expenditure
UK Statistics Family,Office for National Statistics,15/10/2021,Exp - Short-Term Contract & Agency Staff - Full Cost,Divisional Management,Malikshaw Interim & Executive,212329,1865.16,Information Management Services,SME,Programme Expenditure
UK Statistics Family,Office for National Statistics,15/10/2021,EXP - PURCHASE OF GOODS/SERVICES -  NON IT CONTRACTUAL PAYMENTS,Covid Infection Survey,HH Associates Ltd,212331,"37,544.70",Print and Post Services,SME,Programme Expenditure
UK Statistics Family,Office for National Statistics,15/10/2021,EXP - PURCHASE OF GOODS/SERVICES -  NON IT CONTRACTUAL PAYMENTS,Census CCS Data Collection,Granby Marketing Services Ltd,212332,131074.03,Stoarage and Distribution Services,Large,Programme Expenditure
UK Statistics Family,Office for National Statistics,15/10/2021,Surveys,Prices Division,Kantar UK Ltd,212333,205897,Statistical Services,Large,Programme Expenditure
UK Statistics Family,Office for National Statistics,18/10/2021,Exp - Purchase Of Goods And Services Consultants,Productivity Research And Professional Development,Niesr,212537,"445,763.52",Statistical Services,SME,Programme Expenditure
UK Statistics Family,Office for National Statistics,18/10/2021,Exp - Purchase Of Goods/Services - Contractors,Business Architecture,La International,212541,"10,746.69",Information Management Services,SME,Programme Expenditure
UK Statistics Family,Office for National Statistics,18/10/2021,Exp - Purchase Of Goods/Services - Contractors,Testing,La International,212541,"11,854.26",Information Management Services,SME,Programme Expenditure
UK Statistics Family,Office for National Statistics,18/10/2021,Exp - Purchase Of Goods/Services - Contractors,Testing,La International,212541,"3,817.65",Information Management Services,SME,Programme Expenditure
UK Statistics Family,Office for National Statistics,18/10/2021,Exp - Purchase Of Goods/Services - Contractors,INTEGRATED DATA STRATEGY AND DELIVERY,La International,212541,2760,Information Management Services,SME,Programme Expenditure
UK Statistics Family,Office for National Statistics,18/10/2021,Exp - Purchase Of Goods/Services - Contractors,CLOUD ARCHITECTURE,La International,212541,"3,844.62",Information Management Services,SME,Programme Expenditure
UK Statistics Family,Office for National Statistics,18/10/2021,Exp - Purchase Of Goods/Services - Contractors,Strategy And Architecture,La International,212541,"10,764.90",Information Management Services,SME,Programme Expenditure
UK Statistics Family,Office for National Statistics,18/10/2021,Exp - Purchase Of Goods/Services - Contractors,Tech Delivery Legacy Sp,La International,212541,"14,096.88",Information Management Services,SME,Programme Expenditure
UK Statistics Family,Office for National Statistics,18/10/2021,Exp - Purchase Of Goods/Services - Contractors,Tech Delivery Data As A Platform,La International,212541,"3,203.88",Information Management Services,SME,Programme Expenditure
UK Statistics Family,Office for National Statistics,18/10/2021,Exp - Purchase Of Goods/Services - Contractors,Tech Delivery Data As A Platform,La International,212541,10764.9,Information Management Services,SME,Programme Expenditure
UK Statistics Family,Office for National Statistics,18/10/2021,Exp - Purchase Of Goods/Services - Contractors,Digital Delivery,La International,212541,"3,588.30",Information Management Services,SME,Programme Expenditure
UK Statistics Family,Office for National Statistics,18/10/2021,Stationery,Lodgecard,Royal Bank of Scotland,212542,"1,916.70",Multiple Procurement Card Purchases  - Stationery ,Large,Programme Expenditure
UK Statistics Family,Office for National Statistics,18/10/2021,Other Goods And Services,GPC,Royal Bank of Scotland,212542,"54,437.14",Multiple Procurement Card Purchases - other goods/services  ,Large,Programme Expenditure
UK Statistics Family,Office for National Statistics,18/10/2021,Travel And Subsistence,Car Hire,Royal Bank of Scotland,212542,"5,139.46",Multiple Procurement Card Purchases - Car Hire  ,Large,Programme Expenditure
UK Statistics Family,Office for National Statistics,19/10/2021,Exp - Purchase Of Goods/Services - IT Contractual Services,IT Operations,E Synergy Solutions,212553,"85,221.00",Information Management Services,SME,Programme Expenditure
UK Statistics Family,Office for National Statistics,19/10/2021,Exp - Purchase Of Goods/Services - Contractors,Data Architecture,Concept Information Technology Ltd T/A Concept Resourcing,212556,"25,137.22",Information Management Services,Large,Programme Expenditure
UK Statistics Family,Office for National Statistics,19/10/2021,"ICT Outsourcing, Maintenance And Support",IT Operations,Scc,212558,"191,808.00",Information Management Services,Large,Programme Expenditure
UK Statistics Family,Office for National Statistics,19/10/2021,Exp - Purchase Of Goods/Services - Contractors,Strategy And Architecture,Certes Computing Ltd,212561,"14,603.40",Information Management Services,SME,Programme Expenditure
UK Statistics Family,Office for National Statistics,19/10/2021,Exp - Purchase Of Goods/Services - Contractors,Tech Delivery Legacy Sp,Certes Computing Ltd,212561,"12,778.03",Information Management Services,SME,Programme Expenditure
UK Statistics Family,Office for National Statistics,19/10/2021,Exp - Purchase Of Goods/Services - Contractors,Data Architecture,La International,212562,"18,454.18",Information Management Services,SME,Programme Expenditure
UK Statistics Family,Office for National Statistics,19/10/2021,Exp - Purchase Of Goods/Services - Contractors,Strategy And Architecture,La International,212562,"7,176.60",Information Management Services,SME,Programme Expenditure
UK Statistics Family,Office for National Statistics,19/10/2021,Exp - Purchase Of Goods/Services - Contractors,IT Applications,La International,212562,"2,883.48",Information Management Services,SME,Programme Expenditure
UK Statistics Family,Office for National Statistics,19/10/2021,Exp - Purchase Of Goods/Services - Contractors,Digital Delivery,La International,212562,"2,870.64",Information Management Services,SME,Programme Expenditure
UK Statistics Family,Office for National Statistics,19/10/2021,Exp - Purchase Of Goods/Services - Contractors,Digital Delivery,La International,212562,"5,741.28",Information Management Services,SME,Programme Expenditure
UK Statistics Family,Office for National Statistics,19/10/2021,Hosting,CLOUD ARCHITECTURE,Amazon Web Services Inc,212568,"118,397.79",Information Management Services,Large,Programme Expenditure
UK Statistics Family,Office for National Statistics,19/10/2021,Hosting,IT Operations,Amazon Web Services Inc,212568,"53,949.08",Information Management Services,Large,Programme Expenditure
UK Statistics Family,Office for National Statistics,19/10/2021,Exp - Purchase Of Goods/Services - IT Contractual Services,IT Applications,Diegesis Limited,212571,"140,250.00",Information Management Services,Large,Programme Expenditure
UK Statistics Family,Office for National Statistics,19/10/2021,Exp - Purchase Of Goods/Services - Contractors,Strategy And Architecture,LA FOSSE ASSOCIATES LIMITED,212572,"30,450.00",Information Management Services,Large,Programme Expenditure
UK Statistics Family,Office for National Statistics,19/10/2021,Exp - Purchase Of Goods/Services - Contractors,Tech Delivery Legacy Sp,LA FOSSE ASSOCIATES LIMITED,212572,"5,400.00",Information Management Services,Large,Programme Expenditure
UK Statistics Family,Office for National Statistics,19/10/2021,Exp - Purchase Of Goods/Services - Contractors,Tech Delivery Legacy Sp,LA FOSSE ASSOCIATES LIMITED,212572,"20,700.00",Information Management Services,Large,Programme Expenditure
UK Statistics Family,Office for National Statistics,20/10/2021,Exp - Purchase Of Goods/Services - IT Contractual Services,Strategy And Architecture,E Synergy Solutions,212579,"19,800.00",Information Management Services,SME,Programme Expenditure
UK Statistics Family,Office for National Statistics,20/10/2021,Exp - Purchase Of Goods/Services - IT Contractual Services,Tech Delivery Legacy Sp,E Synergy Solutions,212579,"86,724.00",Information Management Services,SME,Programme Expenditure
UK Statistics Family,Office for National Statistics,20/10/2021,Exp - Purchase Of Goods/Services - IT Contractual Services,Tech Delivery Next Gen IT And Infrastructure,E Synergy Solutions,212579,"15,840.00",Information Management Services,SME,Programme Expenditure
UK Statistics Family,Office for National Statistics,20/10/2021,Exp - Purchase Of Goods/Services - IT Contractual Services,Digital Publishing,Swirrl It Ltd,212580,"143,280.00",Information Management Services,SME,Programme Expenditure
UK Statistics Family,Office for National Statistics,20/10/2021,"ICT Outsourcing, Maintenance And Support",IT Operations,Scc,212583,"310,728.96",Information Management Services,Large,Programme Expenditure
UK Statistics Family,Office for National Statistics,20/10/2021,Exp - Purchase Of Goods/Services - Contractors,Best Practice And Impact,Certes Computing Ltd,212587,"2,690.11",Information Management Services,SME,Programme Expenditure
UK Statistics Family,Office for National Statistics,20/10/2021,Exp - Purchase Of Goods/Services - Contractors,Data Architecture,Certes Computing Ltd,212587,"28,797.12",Information Management Services,SME,Programme Expenditure
UK Statistics Family,Office for National Statistics,20/10/2021,Hospitality,Property Services,BaxterStorey,212591,"27,390.00",Catering Services,Large,Programme Expenditure
UK Statistics Family,Office for National Statistics,20/10/2021,Fixtures & Fittings At Cost - Additions,Property Newport,Gresham Office Furniture Limited,212595,"34,207.32",Office Furniture,SME,Programme Expenditure
UK Statistics Family,Office for National Statistics,20/10/2021,FM Contract Payments,Property Newport,Gresham Office Furniture Limited,212595,"1,009.20",Office Furniture,SME,Programme Expenditure
UK Statistics Family,Office for National Statistics,20/10/2021,Survey Incentive Vouchers,Business Analysis & Soc Survey,Gresham Office Furniture Limited,212595,"12,171.60",Office Furniture,SME,Programme Expenditure
UK Statistics Family,Office for National Statistics,20/10/2021,EXP - PURCHASE OF GOODS/SERVICES -  NON IT CONTRACTUAL PAYMENTS,Covid Infection Survey,HH Associates Ltd,212596,"34,644.00",Print and Post Services,SME,Programme Expenditure
UK Statistics Family,Office for National Statistics,20/10/2021,Exp - Short-Term Contract & Agency Staff - Full Cost,Census CCS Data Collection,Talent International,212599,"9,671.98",Information Management Services,SME,Programme Expenditure
UK Statistics Family,Office for National Statistics,20/10/2021,Exp - Short-Term Contract & Agency Staff - Full Cost,Data Architecture,Talent International,212599,"12,170.02",Information Management Services,SME,Programme Expenditure
UK Statistics Family,Office for National Statistics,20/10/2021,Exp - Purchase Of Goods/Services - Contractors,IT Applications,Talent International,212599,"14,820.00",Information Management Services,SME,Programme Expenditure
UK Statistics Family,Office for National Statistics,21/10/2021,Print & Post,Social Survey Transformation Newport,APS Group,212844,"220,563.22",Print and Post Services,Large,Programme Expenditure
UK Statistics Family,Office for National Statistics,21/10/2021,Other Goods And Services,Business Statistics Transformation,Dun & Bradstreet Ltd,212845,"39,000.00",Data Acquisition,Large,Programme Expenditure
UK Statistics Family,Office for National Statistics,21/10/2021,Exp - Purchase Of Goods/Services - IT Contractual Services,Finance,Accenture (UK) Limited,212847,"52,500.00",Consultancy,SME,Programme Expenditure
UK Statistics Family,Office for National Statistics,21/10/2021,EXP - PURCHASE OF GOODS/SERVICES -  NON IT CONTRACTUAL PAYMENTS,Covid Infection Survey,HH Associates Ltd,212848,"39,028.78",Print and Post Services,SME,Programme Expenditure
UK Statistics Family,Office for National Statistics,21/10/2021,Exp - Purchase Of Goods/Services - Contractors,Business Architecture,Parity Resources Limited,212853,"4,259.01",Information Management Services,Large,Programme Expenditure
UK Statistics Family,Office for National Statistics,21/10/2021,Exp - Short-Term Contract & Agency Staff - Full Cost,Census CCS Data Collection,Parity Resources Limited,212853,764.64,Information Management Services,Large,Programme Expenditure
UK Statistics Family,Office for National Statistics,21/10/2021,Exp - Purchase Of Goods/Services - Contractors,Programme Delivery,Parity Resources Limited,212853,"3,310.50",Information Management Services,Large,Programme Expenditure
UK Statistics Family,Office for National Statistics,21/10/2021,Exp - Purchase Of Goods/Services - Contractors,Covid Infection Survey,Parity Resources Limited,212853,900,Information Management Services,Large,Programme Expenditure
UK Statistics Family,Office for National Statistics,21/10/2021,Exp - Purchase Of Goods/Services - Contractors,Covid Infection Survey,Parity Resources Limited,212853,"2,395.04",Information Management Services,Large,Programme Expenditure
UK Statistics Family,Office for National Statistics,21/10/2021,Exp - Purchase Of Goods/Services - Contractors,Digital Publishing,Parity Resources Limited,212853,"20,391.00",Information Management Services,Large,Programme Expenditure
UK Statistics Family,Office for National Statistics,21/10/2021,Exp - Purchase Of Goods/Services - Contractors,Productivity Research And Professional Development,Parity Resources Limited,212853,"3,240.00",Information Management Services,Large,Programme Expenditure
UK Statistics Family,Office for National Statistics,21/10/2021,Exp - Short-Term Contract & Agency Staff - Full Cost,Recruitment ,Parity Resources Limited,212853,732.6,Information Management Services,Large,Programme Expenditure
UK Statistics Family,Office for National Statistics,21/10/2021,Exp - Short-Term Contract & Agency Staff - Full Cost,Data Architecture,Parity Resources Limited,212853,"2,197.80",Information Management Services,Large,Programme Expenditure
UK Statistics Family,Office for National Statistics,21/10/2021,Exp - Purchase Of Goods/Services - Contractors,Data Architecture,Parity Resources Limited,212853,"3,592.56",Information Management Services,Large,Programme Expenditure
UK Statistics Family,Office for National Statistics,22/10/2021,FM Contract Payments,Vinci Payments,Vinci Construction UK Limited,212972,"331,491.78",Facilities Mangement Services,Large,Programme Expenditure
UK Statistics Family,Office for National Statistics,22/10/2021,Exp - Short-Term Contract & Agency Staff - Full Cost,Business Change Support,Concept Information Technology Ltd T/A Concept Resourcing,212973,"3,061.26",Information Management Services,Large,Programme Expenditure
UK Statistics Family,Office for National Statistics,22/10/2021,Exp - Short-Term Contract & Agency Staff - Full Cost,Business Change Support,Concept Information Technology Ltd T/A Concept Resourcing,212973,"8,740.23",Information Management Services,Large,Programme Expenditure
UK Statistics Family,Office for National Statistics,22/10/2021,Exp - Short-Term Contract & Agency Staff - Full Cost,Business Change Support,Concept Information Technology Ltd T/A Concept Resourcing,212973,"6,892.21",Information Management Services,Large,Programme Expenditure
UK Statistics Family,Office for National Statistics,22/10/2021,Exp - Short-Term Contract & Agency Staff - Full Cost,Business Change Support,Concept Information Technology Ltd T/A Concept Resourcing,212973,"6,889.44",Information Management Services,Large,Programme Expenditure
UK Statistics Family,Office for National Statistics,22/10/2021,Exp - Purchase Of Goods/Services - Contractors,Digital Publishing,Certes Computing Ltd,212977,"12,169.50",Information Management Services,SME,Programme Expenditure
UK Statistics Family,Office for National Statistics,22/10/2021,Exp - Purchase Of Goods/Services - Contractors,Social Surveys Division,Certes Computing Ltd,212977,"17,998.20",Information Management Services,SME,Programme Expenditure
UK Statistics Family,Office for National Statistics,22/10/2021,Exp - Purchase Of Goods/Services - Contractors,Tech Delivery Legacy Sp,Talent International,212983,"33,037.20",Information Management Services,SME,Programme Expenditure
UK Statistics Family,Office for National Statistics,25/10/2021,Exp - Purchase Of Goods/Services - Training & Development - Seminar & Conference Fees,2023 CENSUS DATA TRANSFORMATION,University of Southampton,213079,"3,325.00",Training and Educational Services,SME,Programme Expenditure
UK Statistics Family,Office for National Statistics,25/10/2021,EXP - PURCHASE OF GOODS/SERVICES -  NON IT CONTRACTUAL PAYMENTS,Census & Soc Methodology Dd,University of Southampton,213079,"22,935.00",Training and Educational Services,SME,Programme Expenditure
UK Statistics Family,Office for National Statistics,25/10/2021,Exp - Purchase Of Goods/Services - Contractors,Testing,La International,213082,"12,980.89",Information Management Services,SME,Programme Expenditure
UK Statistics Family,Office for National Statistics,25/10/2021,Exp - Purchase Of Goods/Services - Contractors,Testing,La International,213082,5633.17,Information Management Services,SME,Programme Expenditure
UK Statistics Family,Office for National Statistics,25/10/2021,Exp - Purchase Of Goods/Services - Contractors,Sustainability And Inequalities,La International,213082,"1,894.14",Information Management Services,SME,Programme Expenditure
UK Statistics Family,Office for National Statistics,25/10/2021,Exp - Purchase Of Goods/Services - Contractors,Data Architecture,La International,213082,"2,114.53",Information Management Services,SME,Programme Expenditure
UK Statistics Family,Office for National Statistics,25/10/2021,Exp - Purchase Of Goods/Services - Contractors,IT Applications,La International,213082,5766.96,Information Management Services,SME,Programme Expenditure
UK Statistics Family,Office for National Statistics,25/10/2021,Exp - Purchase Of Goods/Services - Contractors,Business Architecture,LA FOSSE ASSOCIATES LIMITED,213086,"20,880.00",Information Management Services,Large,Programme Expenditure
UK Statistics Family,Office for National Statistics,25/10/2021,Exp - Purchase Of Goods/Services - Contractors,Digital Publishing,LA FOSSE ASSOCIATES LIMITED,213086,19800,Information Management Services,Large,Programme Expenditure
UK Statistics Family,Office for National Statistics,25/10/2021,Exp - Purchase Of Goods/Services - Contractors,INTEGRATED DATA STRATEGY AND DELIVERY,LA FOSSE ASSOCIATES LIMITED,213086,"9,360.00",Information Management Services,Large,Programme Expenditure
UK Statistics Family,Office for National Statistics,25/10/2021,Exp - Purchase Of Goods/Services - Contractors,INTEGRATED DATA STRATEGY AND DELIVERY,LA FOSSE ASSOCIATES LIMITED,213086,"8,970.00",Information Management Services,Large,Programme Expenditure
UK Statistics Family,Office for National Statistics,25/10/2021,Exp - Permanent UK Staff - PRP Voucher Payments,ONS Corporate Funds,Edenred (UK Group) Limited,213087,"31,600.00",Performance Reward Vouchers,Large,Programme Expenditure
UK Statistics Family,Office for National Statistics,27/10/2021,Exp - Purchase Of Goods/Services - Incentive Payments,Survey Management,Park Retail Ltd,213096,"48,177.09",Survey Response Incentive Vouchers,Large,Programme Expenditure
UK Statistics Family,Office for National Statistics,27/10/2021,Exp - Purchase Of Goods/Services - IT Contractual Services,Digital Publishing,University of Durham,213099,412185.6,Statistical Services,Large,Programme Expenditure
UK Statistics Family,Office for National Statistics,27/10/2021,Exp - Purchase Of Goods/Services - Contractors,Security Advisory,Certes Computing Ltd,213107,22097.39,Information Management Services,SME,Programme Expenditure
UK Statistics Family,Office for National Statistics,27/10/2021,Exp - Purchase Of Goods/Services - Contractors,MDR Management,Certes Computing Ltd,213107,"14,398.56",Information Management Services,SME,Programme Expenditure
UK Statistics Family,Office for National Statistics,27/10/2021,Exp - Purchase Of Goods/Services - Contractors,Data Architecture,Certes Computing Ltd,213107,"3,202.51",Information Management Services,SME,Programme Expenditure
UK Statistics Family,Office for National Statistics,27/10/2021,Exp - Purchase Of Goods/Services - Contractors,Tech Delivery Legacy Sp,Certes Computing Ltd,213107,"2,613.26",Information Management Services,SME,Programme Expenditure
UK Statistics Family,Office for National Statistics,27/10/2021,Exp - Purchase Of Goods/Services - Contractors,IT Applications,Certes Computing Ltd,213107,"16,204.79",Information Management Services,SME,Programme Expenditure
UK Statistics Family,Office for National Statistics,27/10/2021,Exp - Purchase Of Goods/Services - Contractors,Digital Delivery,Certes Computing Ltd,213107,"15,819.78",Information Management Services,SME,Programme Expenditure
UK Statistics Family,Office for National Statistics,27/10/2021,Exp - Purchase Of Goods/Services - Contractors,Digital Delivery,Certes Computing Ltd,213107,"15,211.93",Information Management Services,SME,Programme Expenditure
UK Statistics Family,Office for National Statistics,27/10/2021,"ICT Outsourcing, Maintenance And Support",IT Operations,CTS (Cloud Technology Solutions Ltd),213114,"30,465.29",DST Infrastructure Preparation,Large,Programme Expenditure
UK Statistics Family,Office for National Statistics,27/10/2021,Hosting,IT Operations,CTS (Cloud Technology Solutions Ltd),213114,"154,622.34",DST Infrastructure Preparation,Large,Programme Expenditure
UK Statistics Family,Office for National Statistics,27/10/2021,Surveys,Crime Statistics,Kantar UK Ltd,213119,"543,164.82",Statistical Services,Large,Programme Expenditure
UK Statistics Family,Office for National Statistics,27/10/2021,"ICT Outsourcing, Maintenance And Support",Finance,Cgi It UK Limited (Formerly Logica UK Limited),213121,"34,413.96",Third Party Payroll Provision,Large,Programme Expenditure
UK Statistics Family,Office for National Statistics,27/10/2021,Exp - Purchase Of Goods/Services - Contractors,Business Architecture,Talent International,213123,"15,009.60",Information Management Services,SME,Programme Expenditure
UK Statistics Family,Office for National Statistics,27/10/2021,Exp - Short-Term Contract & Agency Staff - Full Cost,Census CCS Data Collection,Talent International,213123,"1,492.80",Information Management Services,SME,Programme Expenditure
UK Statistics Family,Office for National Statistics,27/10/2021,Exp - Purchase Of Goods/Services - Contractors,Covid Infection Survey,Talent International,213123,"7,188.00",Information Management Services,SME,Programme Expenditure
UK Statistics Family,Office for National Statistics,27/10/2021,Exp - Purchase Of Goods/Services - Contractors,Researcher Support And Data Access ,Talent International,213123,"1,950.00",Information Management Services,SME,Programme Expenditure
UK Statistics Family,Office for National Statistics,27/10/2021,Exp - Short-Term Contract & Agency Staff - Full Cost,Recruitment ,Talent International,213123,427.84,Information Management Services,SME,Programme Expenditure
UK Statistics Family,Office for National Statistics,27/10/2021,Exp - Short-Term Contract & Agency Staff - Full Cost,Data Architecture,Talent International,213123,569.18,Information Management Services,SME,Programme Expenditure
UK Statistics Family,Office for National Statistics,27/10/2021,Exp - Purchase Of Goods/Services - Contractors,Tech Delivery Next Gen IT And Infrastructure,Talent International,213123,"3,000.00",Information Management Services,SME,Programme Expenditure
UK Statistics Family,Office for National Statistics,27/10/2021,Exp - Purchase Of Goods/Services - Contractors,IT Applications,Talent International,213123,"13,657.20",Information Management Services,SME,Programme Expenditure
UK Statistics Family,Office for National Statistics,27/10/2021,Exp - Short-Term Contract & Agency Staff - Full Cost,Prices Division,Talent International,213123,"1,504.27",Information Management Services,SME,Programme Expenditure
UK Statistics Family,Office for National Statistics,27/10/2021,Exp - Purchase Of Goods/Services - Contractors,Digital Publishing,Parity Resources Limited,213129,"19,545.12",Information Management Services,Large,Programme Expenditure
UK Statistics Family,Office for National Statistics,27/10/2021,Exp - Short-Term Contract & Agency Staff - Full Cost,Business Architecture Transformation And Statistical Strategy,Parity Resources Limited,213129,3310.5,Information Management Services,Large,Programme Expenditure
UK Statistics Family,Office for National Statistics,27/10/2021,Exp - Short-Term Contract & Agency Staff - Full Cost,Business Architecture Transformation And Statistical Strategy,Parity Resources Limited,213129,808.08,Information Management Services,Large,Programme Expenditure
UK Statistics Family,Office for National Statistics,27/10/2021,Exp - Purchase Of Goods/Services - Contractors,IT Operations,Parity Resources Limited,213129,"10,105.20",Information Management Services,Large,Programme Expenditure
UK Statistics Family,Office for National Statistics,27/10/2021,Exp - Seconded UK Staff - Basic Salary,FAST STREAM RECHARGES - CABINET OFFICE,Cabinet Office,213130,"274,485.00",Fast Stream Programme Charges,Large,Programme Expenditure
UK Statistics Family,Office for National Statistics,04/10/2021,Exp - Purchase Of Goods/Services - Incentive Payments,Covid Infection Survey,Sodexo Motivation Solutions U.K. ltd,30003035,"419,112.51",Survey Response Incentive Vouchers,Large,Programme Expenditure
UK Statistics Family,Office for National Statistics,05/10/2021,Surveys,WIDER SURVEILLANCE STUDIES,IQVIA Limited,30003036,"93,987.64",Statistical Services,Large,Programme Expenditure
UK Statistics Family,Office for National Statistics,05/10/2021,Exp - Purchase Of Goods And Services Consultants,Data Science Campus,United Nations Foundation,30003037,"50,000.00",Data Acquisition,SME,Programme Expenditure
UK Statistics Family,Office for National Statistics,08/10/2021,Exp - Purchase Of Goods/Services - Incentive Payments,Covid Infection Survey,Sodexo Motivation Solutions U.K. ltd,30003040,"1,461,384.00",Survey Response Incentive Vouchers,Large,Programme Expenditure
UK Statistics Family,Office for National Statistics,08/10/2021,Surveys,Covid Infection Survey,IQVIA Limited,30003041,"4,651,996.97",Statistical Services,Large,Programme Expenditure
UK Statistics Family,Office for National Statistics,08/10/2021,Exp - Purchase Of Goods/Services - Incentive Payments,Covid Infection Survey,Sodexo Motivation Solutions U.K. ltd,30003042,87573.6,Survey Response Incentive Vouchers,Large,Programme Expenditure
UK Statistics Family,Office for National Statistics,12/10/2021,Surveys,Covid Infection Survey,IQVIA Limited,30003044,"4,524,509.88",Statistical Services,Large,Programme Expenditure
UK Statistics Family,Office for National Statistics,14/10/2021,Exp - Purchase Of Goods/Services - Incentive Payments,Covid Infection Survey,Sodexo Motivation Solutions U.K. ltd,30003046,"1,956,603.27",Survey Response Incentive Vouchers,Large,Programme Expenditure
UK Statistics Family,Office for National Statistics,15/10/2021,Exp - Purchase Of Goods/Services - Incentive Payments,Covid Infection Survey,Sodexo Motivation Solutions U.K. ltd,30003048,"88,048.80",Survey Response Incentive Vouchers,Large,Programme Expenditure
UK Statistics Family,Office for National Statistics,15/10/2021,Exp - Purchase Of Goods/Services - Incentive Payments,Covid Infection Survey,Sodexo Motivation Solutions U.K. ltd,30003049,"27,108.00",Survey Response Incentive Vouchers,Large,Programme Expenditure
UK Statistics Family,Office for National Statistics,18/10/2021,Exp - Purchase Of Goods/Services - Incentive Payments,Covid Infection Survey,Sodexo Motivation Solutions U.K. ltd,30003054,"69,886.24",Survey Response Incentive Vouchers,Large,Programme Expenditure
UK Statistics Family,Office for National Statistics,21/10/2021,Exp - Purchase Of Goods/Services - Incentive Payments,Covid Infection Survey,Sodexo Motivation Solutions U.K. ltd,30003061,"2,475,688.00",Survey Response Incentive Vouchers,Large,Programme Expenditure
UK Statistics Family,Office for National Statistics,21/10/2021,Exp - Purchase Of Goods/Services - Incentive Payments,Covid Infection Survey,Sodexo Motivation Solutions U.K. ltd,30003062,176952.18,Survey Response Incentive Vouchers,Large,Programme Expenditure
UK Statistics Family,Office for National Statistics,21/10/2021,Surveys,Covid Infection Survey,IQVIA Limited,30003063,21120000,Statistical Services,Large,Programme Expenditure
UK Statistics Family,Office for National Statistics,22/10/2021,Exp - Purchase Of Goods/Services - Incentive Payments,Covid Infection Survey,Sodexo Motivation Solutions U.K. ltd,30003064,"138,517.48",Survey Response Incentive Vouchers,Large,Programme Expenditure
UK Statistics Family,Office for National Statistics,28/10/2021,Exp - Purchase Of Goods/Services - Incentive Payments,Covid Infection Survey,Sodexo Motivation Solutions U.K. ltd,30003073,"1,851,852.95",Survey Response Incentive Vouchers,Large,Programme Expenditure
,,,,,,,"50,803,191.83",,,
